Publisher Label,Publisher URI,"Supplier","Net Amount £","Organisational Unit","Merchant Category Code","Purpose","Payment Date"
"Wolverhampton City Council","http://opendatacommunities.org/id/metropolitan-district-council/wolverhampton","ASDA SUPERSTORE","113.00","LAC Transitions Team","5411","Client Allowances","29/03/2019"
"Wolverhampton City Council","http://opendatacommunities.org/id/metropolitan-district-council/wolverhampton","W M MORRISONS.COM","143.83","-","5411","Provisions (Not for resale)","29/03/2019"
"Wolverhampton City Council","http://opendatacommunities.org/id/metropolitan-district-council/wolverhampton","PAYPAL  MINECONKBAY","99.00","Citizenship, Language & Learning","8351","Services - Supplies & Services to users","29/03/2019"
"Wolverhampton City Council","http://opendatacommunities.org/id/metropolitan-district-council/wolverhampton","WOLVERHAMPTON T/O","-6.90","Street Lighting Maintenance","4112","Public Transport","29/03/2019"
"Wolverhampton City Council","http://opendatacommunities.org/id/metropolitan-district-council/wolverhampton","WOLVERHAMPTON T/O","9.00","Street Lighting Maintenance","4112","Public Transport","29/03/2019"
"Wolverhampton City Council","http://opendatacommunities.org/id/metropolitan-district-council/wolverhampton","WOLVERHAMPTON T/O","6.90","Street Lighting Maintenance","4112","Public Transport","29/03/2019"
"Wolverhampton City Council","http://opendatacommunities.org/id/metropolitan-district-council/wolverhampton","NEXT RETAIL LTD","41.67","Mayoral Expenses","5651","Clothing / Uniforms","29/03/2019"
"Wolverhampton City Council","http://opendatacommunities.org/id/metropolitan-district-council/wolverhampton","000002200500000","200.00","Childrens with Disabilities Team","6011","Financial Assistance In Exceptional Circ","29/03/2019"
"Wolverhampton City Council","http://opendatacommunities.org/id/metropolitan-district-council/wolverhampton","ROYAL BK OF SCOTLAND","250.00","CIN/CP Social Work Unit - Area 6","6011","No Recourse to Public Funds","29/03/2019"
"Wolverhampton City Council","http://opendatacommunities.org/id/metropolitan-district-council/wolverhampton","TRAVELODGE","96.67","Adoption and Residence Team & Allowances","3615","Services - Supplies & Services to users","29/03/2019"
"Wolverhampton City Council","http://opendatacommunities.org/id/metropolitan-district-council/wolverhampton","Virgin Trains","16.15","Adoption and Residence Team & Allowances","4112","Public Transport","29/03/2019"
"Wolverhampton City Council","http://opendatacommunities.org/id/metropolitan-district-council/wolverhampton","Virgin Trains","198.00","Fostering Team & Allowances","4112","Public Transport","29/03/2019"
"Wolverhampton City Council","http://opendatacommunities.org/id/metropolitan-district-council/wolverhampton","Virgin Trains","243.55","Fostering Team & Allowances","4112","Public Transport","29/03/2019"
"Wolverhampton City Council","http://opendatacommunities.org/id/metropolitan-district-council/wolverhampton","MYPROTEIN.COM","62.95","WV Active Marketing","5399","Equipment - Purchase","29/03/2019"
"Wolverhampton City Council","http://opendatacommunities.org/id/metropolitan-district-council/wolverhampton","POUNDLAND LTD 1463","10.96","Talk English","5310","Provisions (Not for resale)","29/03/2019"
"Wolverhampton City Council","http://opendatacommunities.org/id/metropolitan-district-council/wolverhampton","LIDL GB","9.88","Youth Offending Team","5411","Provisions (Not for resale)","29/03/2019"
"Wolverhampton City Council","http://opendatacommunities.org/id/metropolitan-district-council/wolverhampton","Amazon.co.uk MZ5UM9LL4","14.45","Youth Offending Team","5969","Books","29/03/2019"
"Wolverhampton City Council","http://opendatacommunities.org/id/metropolitan-district-council/wolverhampton","Amazon.co.uk MZ2RC2LK4","88.89","Youth Offending Team","5969","Books","29/03/2019"
"Wolverhampton City Council","http://opendatacommunities.org/id/metropolitan-district-council/wolverhampton","Amazon.co.uk MZ1XR4LG4","184.55","Youth Offending Team","5969","Books","29/03/2019"
"Wolverhampton City Council","http://opendatacommunities.org/id/metropolitan-district-council/wolverhampton","Amazon.co.uk MZ4YE0LT4","407.50","Youth Offending Team","5969","Equipment - Purchase","29/03/2019"
"Wolverhampton City Council","http://opendatacommunities.org/id/metropolitan-district-council/wolverhampton","WWW.WOLVERHAMPTON.GOV.","70.76","LAC Transitions Team","9399","Client Allowances","29/03/2019"
"Wolverhampton City Council","http://opendatacommunities.org/id/metropolitan-district-council/wolverhampton","Amazon.co.uk MZ5TK2L64","9.36","Creative Studies Delivery Area","5969","Equipment - Purchase","29/03/2019"
"Wolverhampton City Council","http://opendatacommunities.org/id/metropolitan-district-council/wolverhampton","WWW.WESTMINSTER-BRIEFI","306.00","Private Sector Housing","8244","Events","29/03/2019"
"Wolverhampton City Council","http://opendatacommunities.org/id/metropolitan-district-council/wolverhampton","AMZNMktplace","11.62","Wolverhampton Indoor and Open Market","5999","Equipment - Purchase","29/03/2019"
"Wolverhampton City Council","http://opendatacommunities.org/id/metropolitan-district-council/wolverhampton","AMZNMktplace","11.62","Wolverhampton Indoor and Open Market","5999","Equipment - Purchase","29/03/2019"
"Wolverhampton City Council","http://opendatacommunities.org/id/metropolitan-district-council/wolverhampton","Amazon.co.uk MZ2X35LI4","23.56","Global Budgets","5969","Books","29/03/2019"
"Wolverhampton City Council","http://opendatacommunities.org/id/metropolitan-district-council/wolverhampton","B & Q 1243","3.33","Blakenhall Resource Centre","5211","Equipment - R & M","29/03/2019"
"Wolverhampton City Council","http://opendatacommunities.org/id/metropolitan-district-council/wolverhampton","B & Q 1243","2.37","Bradley Resource Centre","5211","Equipment - R & M","29/03/2019"
"Wolverhampton City Council","http://opendatacommunities.org/id/metropolitan-district-council/wolverhampton","Cross Country Trains","108.80","Court Team","4112","Section 17","29/03/2019"
"Wolverhampton City Council","http://opendatacommunities.org/id/metropolitan-district-council/wolverhampton","Cross Country Trains","4.90","Court Team","4112","Section 17","29/03/2019"
"Wolverhampton City Council","http://opendatacommunities.org/id/metropolitan-district-council/wolverhampton","STAGECOACH SERVICE","16.95","Court Team","4131","Section 17","29/03/2019"
"Wolverhampton City Council","http://opendatacommunities.org/id/metropolitan-district-council/wolverhampton","Trainline.com","202.99","Court Team","7922","Public Transport","29/03/2019"
"Wolverhampton City Council","http://opendatacommunities.org/id/metropolitan-district-council/wolverhampton","HM PASSPORT OFFICE","143.50","LAC Transitions Team","9399","Client Allowances","29/03/2019"
"Wolverhampton City Council","http://opendatacommunities.org/id/metropolitan-district-council/wolverhampton","AMZN Mktp UK MZ45T74O4","6.57","City Centre","5942","Equipment - Purchase","28/03/2019"
"Wolverhampton City Council","http://opendatacommunities.org/id/metropolitan-district-council/wolverhampton","NATWEST BANK","200.00","Court Team","6011","Section 17","28/03/2019"
"Wolverhampton City Council","http://opendatacommunities.org/id/metropolitan-district-council/wolverhampton","NATWEST BANK","200.00","CAT","6011","Section 17","28/03/2019"
"Wolverhampton City Council","http://opendatacommunities.org/id/metropolitan-district-council/wolverhampton","LOYD 37 CHURCH STREET","200.00","Duke Street Bungalows","6011","Provisions (Not for resale)","28/03/2019"
"Wolverhampton City Council","http://opendatacommunities.org/id/metropolitan-district-council/wolverhampton","THE COAL AUTHORITY","39.92","Disposal Costs","9399","Services - Professional Fees","28/03/2019"
"Wolverhampton City Council","http://opendatacommunities.org/id/metropolitan-district-council/wolverhampton","SAINSBURYS 2040","101.35","Duke Street Bungalows","5411","Provisions (Not for resale)","28/03/2019"
"Wolverhampton City Council","http://opendatacommunities.org/id/metropolitan-district-council/wolverhampton","HM PASSPORT OFFICE","85.00","LAC Transitions Team","9399","Client Allowances","28/03/2019"
"Wolverhampton City Council","http://opendatacommunities.org/id/metropolitan-district-council/wolverhampton","AMZN Mktp UK MZ0YE7F54","2.67","Key to Inspiration","5942","Furniture","28/03/2019"
"Wolverhampton City Council","http://opendatacommunities.org/id/metropolitan-district-council/wolverhampton","RIBA SERVICES","100.17","Statutory Services (10RM)","5942","Books","28/03/2019"
"Wolverhampton City Council","http://opendatacommunities.org/id/metropolitan-district-council/wolverhampton","WM MORRISON FOOD.COM","109.26","Discretionary Fund","5411","Materials","28/03/2019"
"Wolverhampton City Council","http://opendatacommunities.org/id/metropolitan-district-council/wolverhampton","DP/BURTON/EVANS","40.00","LAC Transitions Team","5691","Accommodation Costs","28/03/2019"
"Wolverhampton City Council","http://opendatacommunities.org/id/metropolitan-district-council/wolverhampton","NATWEST BANK","200.00","Court Team","6011","No Recourse to Public Funds","28/03/2019"
"Wolverhampton City Council","http://opendatacommunities.org/id/metropolitan-district-council/wolverhampton","WHITEMORE REANS LTD","66.67","Aldersley Leisure Village","5251","Equipment - Purchase","28/03/2019"
"Wolverhampton City Council","http://opendatacommunities.org/id/metropolitan-district-council/wolverhampton","Virgin Trains","-185.00","Fostering Team & Allowances","4112","Public Transport","28/03/2019"
"Wolverhampton City Council","http://opendatacommunities.org/id/metropolitan-district-council/wolverhampton","Trainline","36.12","LAC Transitions Team","4112","Public Transport","28/03/2019"
"Wolverhampton City Council","http://opendatacommunities.org/id/metropolitan-district-council/wolverhampton","AMZN Mktp UK MZ8FT0FS4","15.23","Communications & Marketing - General","5942","Books","28/03/2019"
"Wolverhampton City Council","http://opendatacommunities.org/id/metropolitan-district-council/wolverhampton","SQUARESPACE INC.","168.87","Headstart Phase 3","7372","Computing - Purchase of Software","28/03/2019"
"Wolverhampton City Council","http://opendatacommunities.org/id/metropolitan-district-council/wolverhampton","CT WOLVERHAMPTON","125.00","LAC Transitions Team","8398","Client Allowances","28/03/2019"
"Wolverhampton City Council","http://opendatacommunities.org/id/metropolitan-district-council/wolverhampton","Santander","270.00","LAC Transitions Team","6011","Client Allowances","28/03/2019"
"Wolverhampton City Council","http://opendatacommunities.org/id/metropolitan-district-council/wolverhampton","BLOOMS MENSWEAR","149.95","Mayoral Expenses","5611","Clothing / Uniforms","28/03/2019"
"Wolverhampton City Council","http://opendatacommunities.org/id/metropolitan-district-council/wolverhampton","TVLICENSING.CO.UK","125.42","LAC Transitions Team","7392","Client Allowances","28/03/2019"
"Wolverhampton City Council","http://opendatacommunities.org/id/metropolitan-district-council/wolverhampton","Trainline","-24.75","LAC Transitions Team","4112","Public Transport","28/03/2019"
"Wolverhampton City Council","http://opendatacommunities.org/id/metropolitan-district-council/wolverhampton","POST OFFICE COUNTER","8.70","LAC Team","9402","Comms - Postage","28/03/2019"
"Wolverhampton City Council","http://opendatacommunities.org/id/metropolitan-district-council/wolverhampton","Amazon.co.uk MZ5OM9434","62.50","Creative Studies Delivery Area","5969","Equipment - Purchase","28/03/2019"
"Wolverhampton City Council","http://opendatacommunities.org/id/metropolitan-district-council/wolverhampton","Amazon.co.uk MZ1OW14V4","62.50","Creative Studies Delivery Area","5969","Equipment - Purchase","28/03/2019"
"Wolverhampton City Council","http://opendatacommunities.org/id/metropolitan-district-council/wolverhampton","AMZN Mktp UK MZ4FZ84P4","6.46","Creative Studies Delivery Area","5942","Equipment - Purchase","28/03/2019"
"Wolverhampton City Council","http://opendatacommunities.org/id/metropolitan-district-council/wolverhampton","WWW.WOLVERHAMPTON.GOV.","441.16","LAC Transitions Team","9399","Accommodation Costs","28/03/2019"
"Wolverhampton City Council","http://opendatacommunities.org/id/metropolitan-district-council/wolverhampton","WWW.WOLVERHAMPTON.GOV.","500.00","LAC Transitions Team","9399","Accommodation Costs","28/03/2019"
"Wolverhampton City Council","http://opendatacommunities.org/id/metropolitan-district-council/wolverhampton","WWW.WOLVERHAMPTON.GOV.","420.59","LAC Transitions Team","9399","Accommodation Costs","28/03/2019"
"Wolverhampton City Council","http://opendatacommunities.org/id/metropolitan-district-council/wolverhampton","WWW.WOLVERHAMPTON.GOV.","500.00","LAC Transitions Team","9399","Accommodation Costs","28/03/2019"
"Wolverhampton City Council","http://opendatacommunities.org/id/metropolitan-district-council/wolverhampton","Amazon.co.uk MZ8DQ04M4","127.78","Creative Studies Delivery Area","5969","Books","28/03/2019"
"Wolverhampton City Council","http://opendatacommunities.org/id/metropolitan-district-council/wolverhampton","RIBA SERVICES","80.60","Capital Programme Team","5942","Stationery","28/03/2019"
"Wolverhampton City Council","http://opendatacommunities.org/id/metropolitan-district-council/wolverhampton","AMZN Mktp UK MZ5B36454","9.74","Global Budgets","5942","Books","28/03/2019"
"Wolverhampton City Council","http://opendatacommunities.org/id/metropolitan-district-council/wolverhampton","Amazon.co.uk MZ67804Y4","86.71","ICT Services","5969","Equipment - Purchase","28/03/2019"
"Wolverhampton City Council","http://opendatacommunities.org/id/metropolitan-district-council/wolverhampton","AMZN Mktp UK MZ3OP74G4","56.52","Trading Standards","5942","Equipment - Purchase","28/03/2019"
"Wolverhampton City Council","http://opendatacommunities.org/id/metropolitan-district-council/wolverhampton","ASDA GROCERIES ONLINE","54.66","Ernest Bold Court","5411","Provisions (Not for resale)","27/03/2019"
"Wolverhampton City Council","http://opendatacommunities.org/id/metropolitan-district-council/wolverhampton","J VAN VLIET BIRMINGHAM","170.95","Creative Studies Delivery Area","5399","Materials for resale","27/03/2019"
"Wolverhampton City Council","http://opendatacommunities.org/id/metropolitan-district-council/wolverhampton","J VAN VLIET BIRMINGHAM","85.45","Creative Studies Delivery Area","5399","Materials for resale","27/03/2019"
"Wolverhampton City Council","http://opendatacommunities.org/id/metropolitan-district-council/wolverhampton","AMZN Mktp UK MZ6I35OS4","12.62","Music Support Team","5942","Books","27/03/2019"
"Wolverhampton City Council","http://opendatacommunities.org/id/metropolitan-district-council/wolverhampton","REDWINGS LODGE","37.46","CIN/CP Social Work Unit - Area 8","7011","Section 17","27/03/2019"
"Wolverhampton City Council","http://opendatacommunities.org/id/metropolitan-district-council/wolverhampton","CITY OF WOLVERHAMPTON","13.33","LAC Transitions Team","9399","Client Allowances","27/03/2019"
"Wolverhampton City Council","http://opendatacommunities.org/id/metropolitan-district-council/wolverhampton","CO-OP GROUP 070362","5.80","Northicote Farm","5411","Provisions (Not for resale)","27/03/2019"
"Wolverhampton City Council","http://opendatacommunities.org/id/metropolitan-district-council/wolverhampton","AMZN Mktp UK MZ20K8OO4","6.58","Key to Inspiration","5942","Fixtures and Fittings - Purchases","27/03/2019"
"Wolverhampton City Council","http://opendatacommunities.org/id/metropolitan-district-council/wolverhampton","Amazon.co.uk MZ87B3OO4","36.25","Key to Inspiration","5969","Equipment - Purchase","27/03/2019"
"Wolverhampton City Council","http://opendatacommunities.org/id/metropolitan-district-council/wolverhampton","Amazon.co.uk MZ8K63CQ4","36.25","Key to Inspiration","5969","Equipment - Purchase","27/03/2019"
"Wolverhampton City Council","http://opendatacommunities.org/id/metropolitan-district-council/wolverhampton","Amazon.co.uk MZ1GV7OQ4","30.47","Key to Inspiration","5969","Equipment - Purchase","27/03/2019"
"Wolverhampton City Council","http://opendatacommunities.org/id/metropolitan-district-council/wolverhampton","AMZN Mktp UK MZ02N5C44","73.28","Key to Inspiration","5942","Equipment - Purchase","27/03/2019"
"Wolverhampton City Council","http://opendatacommunities.org/id/metropolitan-district-council/wolverhampton","WWW.WMCA.CO.UK","18.00","Strategic ICTS (ICT Serv Budget)","9399","Public Transport","27/03/2019"
"Wolverhampton City Council","http://opendatacommunities.org/id/metropolitan-district-council/wolverhampton","SCREWFIX DIRECT","7.40","Technician","5200","Equipment - Purchase","27/03/2019"
"Wolverhampton City Council","http://opendatacommunities.org/id/metropolitan-district-council/wolverhampton","REDWINGS LODGE","37.46","Emergency Duty Team","7011","Services - Supplies & Services to users","27/03/2019"
"Wolverhampton City Council","http://opendatacommunities.org/id/metropolitan-district-council/wolverhampton","Virgin Trains","195.00","Fostering Team & Allowances","4112","Public Transport","27/03/2019"
"Wolverhampton City Council","http://opendatacommunities.org/id/metropolitan-district-council/wolverhampton","INTERFLORA BRITISH UNI","32.50","Fostering Team & Allowances","5992","Equipment - Purchase","27/03/2019"
"Wolverhampton City Council","http://opendatacommunities.org/id/metropolitan-district-council/wolverhampton","CardtronicsUK","100.95","Headstart Phase 3","6011","Financial Assistance In Exceptional Circ","27/03/2019"
"Wolverhampton City Council","http://opendatacommunities.org/id/metropolitan-district-council/wolverhampton","HALFORDS 0775","34.27","Mayoral Expenses","5940","Cleaning Supplies and Materials","27/03/2019"
"Wolverhampton City Council","http://opendatacommunities.org/id/metropolitan-district-council/wolverhampton","SAINSBURYS PFS (1340)","1.67","Mayoral Expenses","5541","Vehicle Maintenance - Repairs","27/03/2019"
"Wolverhampton City Council","http://opendatacommunities.org/id/metropolitan-district-council/wolverhampton","BRITISH STANDARDS","126.00","Admin & Support","7399","Computing - Purchase of Software","27/03/2019"
"Wolverhampton City Council","http://opendatacommunities.org/id/metropolitan-district-council/wolverhampton","Trainline","72.24","LAC Transitions Team","4112","Public Transport","27/03/2019"
"Wolverhampton City Council","http://opendatacommunities.org/id/metropolitan-district-council/wolverhampton","Trainline","41.87","LAC Transitions Team","4112","Client Allowances","27/03/2019"
"Wolverhampton City Council","http://opendatacommunities.org/id/metropolitan-district-council/wolverhampton","CT WOLVERHAMPTON","150.00","LAC Transitions Team","8398","Client Allowances","27/03/2019"
"Wolverhampton City Council","http://opendatacommunities.org/id/metropolitan-district-council/wolverhampton","FINESSE CARPETS LTD","250.00","LAC Transitions Team","5713","Client Allowances","27/03/2019"
"Wolverhampton City Council","http://opendatacommunities.org/id/metropolitan-district-council/wolverhampton","FINESSE CARPETS LTD","240.00","LAC Transitions Team","5713","Client Allowances","27/03/2019"
"Wolverhampton City Council","http://opendatacommunities.org/id/metropolitan-district-council/wolverhampton","TVLICENSING.CO.UK","150.50","LAC Transitions Team","7392","Client Allowances","27/03/2019"
"Wolverhampton City Council","http://opendatacommunities.org/id/metropolitan-district-council/wolverhampton","Amazon.co.uk MZ7TD8OU4","32.61","Strategic ICTS (ICT Serv Budget)","5969","Equipment - Purchase","27/03/2019"
"Wolverhampton City Council","http://opendatacommunities.org/id/metropolitan-district-council/wolverhampton","Trainline","58.10","Service Director City Environment","4112","Public Transport","27/03/2019"
"Wolverhampton City Council","http://opendatacommunities.org/id/metropolitan-district-council/wolverhampton","TICKET OFFICE-INTE","360.00","Delivery & OCE Development","7997","Educ Trips, Holidays, Outings, Activity","27/03/2019"
"Wolverhampton City Council","http://opendatacommunities.org/id/metropolitan-district-council/wolverhampton","ARGOS LTD","109.99","Upper Pendeford Farm Childrens Home","5310","Equipment - Purchase","27/03/2019"
"Wolverhampton City Council","http://opendatacommunities.org/id/metropolitan-district-council/wolverhampton","Virgin Trains","157.50","LAC Team","4112","Client Transport","27/03/2019"
"Wolverhampton City Council","http://opendatacommunities.org/id/metropolitan-district-council/wolverhampton","ASDA GROCERIES ONLINE","46.61","24+ Advanced Learning Loan","5411","Provisions (Not for resale)","27/03/2019"
"Wolverhampton City Council","http://opendatacommunities.org/id/metropolitan-district-council/wolverhampton","AMZN MKTP UK MZ1251CE4","20.93","Creative Studies Delivery Area","5942","Equipment - Purchase","27/03/2019"
"Wolverhampton City Council","http://opendatacommunities.org/id/metropolitan-district-council/wolverhampton","WILKO RETAIL LIMIT","3.00","24+ Advanced Learning Loan","5722","Equipment - Purchase","27/03/2019"
"Wolverhampton City Council","http://opendatacommunities.org/id/metropolitan-district-council/wolverhampton","Amazon.co.uk MZ5S90C24","19.56","LAC Transitions Team","5969","Client Allowances","27/03/2019"
"Wolverhampton City Council","http://opendatacommunities.org/id/metropolitan-district-council/wolverhampton","WICKES WOLVERHAMPTON","8.32","Specialist Support Service - North","5211","Equipment - R & M","27/03/2019"
"Wolverhampton City Council","http://opendatacommunities.org/id/metropolitan-district-council/wolverhampton","WICKES WOLVERHAMPTON","9.17","Specialist Support Service - North","5211","Equipment - R & M","27/03/2019"
"Wolverhampton City Council","http://opendatacommunities.org/id/metropolitan-district-council/wolverhampton","POST OFFICE COUNTER","8.70","LAC Team","9402","Comms - Postage","27/03/2019"
"Wolverhampton City Council","http://opendatacommunities.org/id/metropolitan-district-council/wolverhampton","HM PASSPORT OFFICE","49.00","LAC Team","9399","Financial Assistance In Exceptional Circ","27/03/2019"
"Wolverhampton City Council","http://opendatacommunities.org/id/metropolitan-district-council/wolverhampton","HM PASSPORT OFFICE","49.00","LAC Team","9399","Financial Assistance In Exceptional Circ","27/03/2019"
"Wolverhampton City Council","http://opendatacommunities.org/id/metropolitan-district-council/wolverhampton","THE COAL AUTHORITY","34.33","Capital Programme Team","9399","Services - Fees and Charges","26/03/2019"
"Wolverhampton City Council","http://opendatacommunities.org/id/metropolitan-district-council/wolverhampton","F A GILL LTD","89.18","-","5499","Catering","26/03/2019"
"Wolverhampton City Council","http://opendatacommunities.org/id/metropolitan-district-council/wolverhampton","ASDA GROCERIES ONLINE","122.89","Bradley Resource Centre","5411","Provisions (Not for resale)","26/03/2019"
"Wolverhampton City Council","http://opendatacommunities.org/id/metropolitan-district-council/wolverhampton","Trainline","-37.20","Citizenship, Language & Learning","4112","Public Transport","26/03/2019"
"Wolverhampton City Council","http://opendatacommunities.org/id/metropolitan-district-council/wolverhampton","Trainline","-38.80","Citizenship, Language & Learning","4112","Public Transport","26/03/2019"
"Wolverhampton City Council","http://opendatacommunities.org/id/metropolitan-district-council/wolverhampton","JD SPORTS GYMS LTD","250.00","Youth Offending Team","5734","Training Expenses","26/03/2019"
"Wolverhampton City Council","http://opendatacommunities.org/id/metropolitan-district-council/wolverhampton","AMZN Mktp UK MW3RO5YG4","19.31","Towers Outdoor Education Centre","5942","Equipment - Purchase","26/03/2019"
"Wolverhampton City Council","http://opendatacommunities.org/id/metropolitan-district-council/wolverhampton","AMZN Mktp UK MW3T89WG4","26.85","Towers Outdoor Education Centre","5942","Equipment - Purchase","26/03/2019"
"Wolverhampton City Council","http://opendatacommunities.org/id/metropolitan-district-council/wolverhampton","CHARTERED INST OF LEGA","110.00","Legal Services","8699","Subscriptions","26/03/2019"
"Wolverhampton City Council","http://opendatacommunities.org/id/metropolitan-district-council/wolverhampton","Virgin Trains","86.10","Audit Services","4112","Public Transport","26/03/2019"
"Wolverhampton City Council","http://opendatacommunities.org/id/metropolitan-district-council/wolverhampton","Amazon.co.uk MW72U6YZ4","18.73","Intensive Family Support Team","5969","Equipment - Purchase","26/03/2019"
"Wolverhampton City Council","http://opendatacommunities.org/id/metropolitan-district-council/wolverhampton","Amazon.co.uk MW9TS3YU4","23.89","Creative Studies Delivery Area","5969","Equipment - Purchase","26/03/2019"
"Wolverhampton City Council","http://opendatacommunities.org/id/metropolitan-district-council/wolverhampton","AMZN Mktp UK MW13N3YU4","18.53","Creative Studies Delivery Area","5942","Equipment - Purchase","26/03/2019"
"Wolverhampton City Council","http://opendatacommunities.org/id/metropolitan-district-council/wolverhampton","AMZN MKTP UK MW75V1YJ4","49.95","Bilston Market & Licensed Operations","5942","Catering","26/03/2019"
"Wolverhampton City Council","http://opendatacommunities.org/id/metropolitan-district-council/wolverhampton","CUMMINGS BROTHERS LOCK","17.50","Specialist Support Service - North","7399","Equipment - R & M","26/03/2019"
"Wolverhampton City Council","http://opendatacommunities.org/id/metropolitan-district-council/wolverhampton","TIPPERS WOLVERHAMPTON","13.02","Culwell Street Depot","5072","Equipment - Purchase","26/03/2019"
"Wolverhampton City Council","http://opendatacommunities.org/id/metropolitan-district-council/wolverhampton","NATIONWIDE","20.00","EIP Locality 1","6011","Financial Assistance In Exceptional Circ","26/03/2019"
"Wolverhampton City Council","http://opendatacommunities.org/id/metropolitan-district-council/wolverhampton","POST OFFICE COUNTER","7.40","LAC Team","9402","Comms - Postage","26/03/2019"
"Wolverhampton City Council","http://opendatacommunities.org/id/metropolitan-district-council/wolverhampton","DUDLEY MET CNL ATP","-16.50","Court Team","7999","Section 17","26/03/2019"
"Wolverhampton City Council","http://opendatacommunities.org/id/metropolitan-district-council/wolverhampton","THE COAL AUTHORITY","39.92","Disposal Costs","9399","Services - Professional Fees","26/03/2019"
"Wolverhampton City Council","http://opendatacommunities.org/id/metropolitan-district-council/wolverhampton","Virgin Trains","166.80","Mental Health Assessment & Care Mgmt","4112","Public Transport","26/03/2019"
"Wolverhampton City Council","http://opendatacommunities.org/id/metropolitan-district-council/wolverhampton","COMPANY CARDS LTD","96.00","Technical Support","2741","Publications","26/03/2019"
"Wolverhampton City Council","http://opendatacommunities.org/id/metropolitan-district-council/wolverhampton","J VAN VLIET BIRMINGHAM","73.09","Creative Studies Delivery Area","5399","Materials","26/03/2019"
"Wolverhampton City Council","http://opendatacommunities.org/id/metropolitan-district-council/wolverhampton","AMZN Mktp UK MW3MW5YQ4","28.30","Music Support Team","5942","Stationery","26/03/2019"
"Wolverhampton City Council","http://opendatacommunities.org/id/metropolitan-district-council/wolverhampton","TICKETS08712200260","100.00","Information Governance Team","7922","Conference Expenses","26/03/2019"
"Wolverhampton City Council","http://opendatacommunities.org/id/metropolitan-district-council/wolverhampton","AMZN Mktp UK MW0AP0Y74","34.40","Education And Access","5942","Books","26/03/2019"
"Wolverhampton City Council","http://opendatacommunities.org/id/metropolitan-district-council/wolverhampton","AMZN Mktp UK MW9IM8W94","5.40","Business Support Services","5942","Equipment - Purchase","25/03/2019"
"Wolverhampton City Council","http://opendatacommunities.org/id/metropolitan-district-council/wolverhampton","AMZN Mktp UK MW5PT4RN4","49.91","Business Support Services","5942","Equipment - Purchase","25/03/2019"
"Wolverhampton City Council","http://opendatacommunities.org/id/metropolitan-district-council/wolverhampton","THE CLEANING WAREHOUSE","315.15","Business Support Services","7349","Equipment - Purchase","25/03/2019"
"Wolverhampton City Council","http://opendatacommunities.org/id/metropolitan-district-council/wolverhampton","ASDA GROCERIES ONLINE","31.23","Creative Studies Delivery Area","5411","Provisions (Not for resale)","25/03/2019"
"Wolverhampton City Council","http://opendatacommunities.org/id/metropolitan-district-council/wolverhampton","NATIONAL EXPRESS LIMIT","31.80","MASH","4131","Section 17","25/03/2019"
"Wolverhampton City Council","http://opendatacommunities.org/id/metropolitan-district-council/wolverhampton","HOLLYBUSH NURSERIES LT","7.99","Upper Pendeford Farm Childrens Home","5261","Equipment - Purchase","25/03/2019"
"Wolverhampton City Council","http://opendatacommunities.org/id/metropolitan-district-council/wolverhampton","AMZN MKTP UK MW8R96WO4","46.56","Bilston Market & Licensed Operations","5942","Catering","25/03/2019"
"Wolverhampton City Council","http://opendatacommunities.org/id/metropolitan-district-council/wolverhampton","AMZN MKTP UK MW4RL2W04","23.28","Bilston Market & Licensed Operations","5942","Catering","25/03/2019"
"Wolverhampton City Council","http://opendatacommunities.org/id/metropolitan-district-council/wolverhampton","AMZN MKTP UK MW0XY8W04","46.56","Bilston Market & Licensed Operations","5942","Catering","25/03/2019"
"Wolverhampton City Council","http://opendatacommunities.org/id/metropolitan-district-council/wolverhampton","CardtronicsUK","90.00","EIP Locality 3","6011","Grant Payments","25/03/2019"
"Wolverhampton City Council","http://opendatacommunities.org/id/metropolitan-district-council/wolverhampton","AMZN Mktp UK MW5334IL4","14.80","Education And Access","5942","Books","25/03/2019"
"Wolverhampton City Council","http://opendatacommunities.org/id/metropolitan-district-council/wolverhampton","HM PASSPORT OFFICE","58.50","LAC Team","9399","Financial Assistance In Exceptional Circ","25/03/2019"
"Wolverhampton City Council","http://opendatacommunities.org/id/metropolitan-district-council/wolverhampton","POSTURITE LTD","86.38","LAC Team","7399","Equipment - Purchase","25/03/2019"
"Wolverhampton City Council","http://opendatacommunities.org/id/metropolitan-district-council/wolverhampton","ASDA GROCERIES ONLINE","5.00","Ernest Bold Court","5411","Provisions (Not for resale)","25/03/2019"
"Wolverhampton City Council","http://opendatacommunities.org/id/metropolitan-district-council/wolverhampton","HERON FOODS LTD","11.84","Ernest Bold Court","5499","Provisions (Not for resale)","25/03/2019"
"Wolverhampton City Council","http://opendatacommunities.org/id/metropolitan-district-council/wolverhampton","ASDA GROCERIES ONLINE","-.20","Ernest Bold Court","5411","Provisions (Not for resale)","25/03/2019"
"Wolverhampton City Council","http://opendatacommunities.org/id/metropolitan-district-council/wolverhampton","ASDA GROCERIES ONLINE","59.22","Ernest Bold Court","5411","Provisions (Not for resale)","25/03/2019"
"Wolverhampton City Council","http://opendatacommunities.org/id/metropolitan-district-council/wolverhampton","PAYPAL  POLY POSTAL","106.00","Environmental Crime and Consumer Protect","7399","Equipment - Purchase","25/03/2019"
"Wolverhampton City Council","http://opendatacommunities.org/id/metropolitan-district-council/wolverhampton","Central Taxis Limited","15.80","CAT","4121","Section 17","25/03/2019"
"Wolverhampton City Council","http://opendatacommunities.org/id/metropolitan-district-council/wolverhampton","AMZN Mktp UK MW6FJ9WT4","23.75","Children & Family Contact Services","5942","Equipment - Purchase","25/03/2019"
"Wolverhampton City Council","http://opendatacommunities.org/id/metropolitan-district-council/wolverhampton","AMZN Mktp UK MW2NW1WN4","11.62","Children & Family Contact Services","5942","Equipment - Purchase","25/03/2019"
"Wolverhampton City Council","http://opendatacommunities.org/id/metropolitan-district-council/wolverhampton","PP STEMIKGAMIN","8.12","Children & Family Contact Services","5399","Equipment - Purchase","25/03/2019"
"Wolverhampton City Council","http://opendatacommunities.org/id/metropolitan-district-council/wolverhampton","PP STEMIKGAMIN","65.83","Children & Family Contact Services","5399","Equipment - Purchase","25/03/2019"
"Wolverhampton City Council","http://opendatacommunities.org/id/metropolitan-district-council/wolverhampton","AMZN Mktp UK MW3664WE4","15.98","Music Support Team","5942","Books","25/03/2019"
"Wolverhampton City Council","http://opendatacommunities.org/id/metropolitan-district-council/wolverhampton","SOUND ATTAK LTD","333.33","Music Support Team","5733","Equipment - Purchase","25/03/2019"
"Wolverhampton City Council","http://opendatacommunities.org/id/metropolitan-district-council/wolverhampton","SOUND ATTAK LTD","146.65","Music Support Team","5733","Equipment - Purchase","25/03/2019"
"Wolverhampton City Council","http://opendatacommunities.org/id/metropolitan-district-council/wolverhampton","Amazon.co.uk MW0PY3IQ4","4.50","Music Support Team","5969","Books","25/03/2019"
"Wolverhampton City Council","http://opendatacommunities.org/id/metropolitan-district-council/wolverhampton","AMZN Mktp UK MW8C46I24","32.55","Music Support Team","5942","Books","25/03/2019"
"Wolverhampton City Council","http://opendatacommunities.org/id/metropolitan-district-council/wolverhampton","AMZN Mktp UK MW7CW3IM4","9.98","Music Support Team","5942","Books","25/03/2019"
"Wolverhampton City Council","http://opendatacommunities.org/id/metropolitan-district-council/wolverhampton","AMZN Mktp UK MW42T3UT4","7.99","Music Support Team","5942","Books","25/03/2019"
"Wolverhampton City Council","http://opendatacommunities.org/id/metropolitan-district-council/wolverhampton","AMZN MKTP UK MW0R40WO4","92.48","Waste Coll & Recycling Serv General","5942","Equipment - Purchase","25/03/2019"
"Wolverhampton City Council","http://opendatacommunities.org/id/metropolitan-district-council/wolverhampton","AMZN MKTP UK MW6IV9UH4","14.32","Northicote Farm","5942","Equipment - Purchase","25/03/2019"
"Wolverhampton City Council","http://opendatacommunities.org/id/metropolitan-district-council/wolverhampton","Northern Rail","29.20","-","4112","Public Transport","25/03/2019"
"Wolverhampton City Council","http://opendatacommunities.org/id/metropolitan-district-council/wolverhampton","ASDA STORE","48.96","-","5411","Provisions (Not for resale)","25/03/2019"
"Wolverhampton City Council","http://opendatacommunities.org/id/metropolitan-district-council/wolverhampton","WWW.ICELAND.CO.UK","76.10","Bradley Resource Centre","5411","Provisions (Not for resale)","25/03/2019"
"Wolverhampton City Council","http://opendatacommunities.org/id/metropolitan-district-council/wolverhampton","ASDA GROCERIES ONLINE","55.00","Bradley Resource Centre","5411","Provisions (Not for resale)","25/03/2019"
"Wolverhampton City Council","http://opendatacommunities.org/id/metropolitan-district-council/wolverhampton","WWW.WMCA.ORG.UK","50.75","LAC Transitions Team","4111","Client Allowances","25/03/2019"
"Wolverhampton City Council","http://opendatacommunities.org/id/metropolitan-district-council/wolverhampton","PREMIER INN","405.00","Adoption and Residence Team & Allowances","3811","Services - Supplies & Services to users","25/03/2019"
"Wolverhampton City Council","http://opendatacommunities.org/id/metropolitan-district-council/wolverhampton","AMZN Mktp UK MW3KQ4R74","7.20","Towers Outdoor Education Centre","5942","Fixtures and Fittings - Purchases","25/03/2019"
"Wolverhampton City Council","http://opendatacommunities.org/id/metropolitan-district-council/wolverhampton","SCREWFIX DIRECT","18.32","Towers Outdoor Education Centre","5200","Fixtures and Fittings - Purchases","25/03/2019"
"Wolverhampton City Council","http://opendatacommunities.org/id/metropolitan-district-council/wolverhampton","WWW.GOWALLPAPER.CO.UK","31.64","Towers Outdoor Education Centre","5231","Fixtures and Fittings - Purchases","25/03/2019"
"Wolverhampton City Council","http://opendatacommunities.org/id/metropolitan-district-council/wolverhampton","AMZN Mktp UK MW73H2IF4","7.55","Towers Outdoor Education Centre","5942","Fixtures and Fittings - Purchases","25/03/2019"
"Wolverhampton City Council","http://opendatacommunities.org/id/metropolitan-district-council/wolverhampton","AMZN Mktp UK MW6GI1IP4","4.04","Towers Outdoor Education Centre","5942","Fixtures and Fittings - Purchases","25/03/2019"
"Wolverhampton City Council","http://opendatacommunities.org/id/metropolitan-district-council/wolverhampton","PCS Gym Upholstery UK","357.06","Aldersley Leisure Village","7641","Furniture","25/03/2019"
"Wolverhampton City Council","http://opendatacommunities.org/id/metropolitan-district-council/wolverhampton","WP-CENTRAL TAXIS L","122.92","Fostering Team & Allowances","4121","Client Transport","25/03/2019"
"Wolverhampton City Council","http://opendatacommunities.org/id/metropolitan-district-council/wolverhampton","GOOGLE  ADS9680351324","500.00","Communications & Marketing - General","5968","Subscriptions","25/03/2019"
"Wolverhampton City Council","http://opendatacommunities.org/id/metropolitan-district-council/wolverhampton","PRODUCT SUPPORT AG","6.66","Headstart - Young People Engagement","5968","Computing - Maint Agreements","25/03/2019"
"Wolverhampton City Council","http://opendatacommunities.org/id/metropolitan-district-council/wolverhampton","PRODUCT SUPPORT AG","6.66","Headstart - Young People Engagement","5968","Computing - Maint Agreements","25/03/2019"
"Wolverhampton City Council","http://opendatacommunities.org/id/metropolitan-district-council/wolverhampton","HOMERLECTRIC LTD","166.67","Bert Williams Leisure Centre","5722","Equipment - Purchase","25/03/2019"
"Wolverhampton City Council","http://opendatacommunities.org/id/metropolitan-district-council/wolverhampton","AMZN Mktp UK MW5J34IE4","19.34","Youth Offending Team","5942","Protective Clothing","25/03/2019"
"Wolverhampton City Council","http://opendatacommunities.org/id/metropolitan-district-council/wolverhampton","ASDA SUPERSTORE","7.25","LAC Transitions Team","5411","Client Allowances","25/03/2019"
"Wolverhampton City Council","http://opendatacommunities.org/id/metropolitan-district-council/wolverhampton","ASDA SUPERSTORE","65.04","LAC Transitions Team","5411","Client Allowances","25/03/2019"
"Wolverhampton City Council","http://opendatacommunities.org/id/metropolitan-district-council/wolverhampton","ASDA SUPERSTORE","184.17","LAC Transitions Team","5411","Client Allowances","25/03/2019"
"Wolverhampton City Council","http://opendatacommunities.org/id/metropolitan-district-council/wolverhampton","ASDA SUPERSTORE","198.33","LAC Transitions Team","5411","Client Allowances","25/03/2019"
"Wolverhampton City Council","http://opendatacommunities.org/id/metropolitan-district-council/wolverhampton","WP-CENTRAL TAXIS L","134.10","LAC Team","4121","Client Transport","25/03/2019"
"Wolverhampton City Council","http://opendatacommunities.org/id/metropolitan-district-council/wolverhampton","AMZN Mktp UK MW9TT5RK4","31.44","Strategic ICTS (ICT Serv Budget)","5942","Computing - Purchase of Hardware","25/03/2019"
"Wolverhampton City Council","http://opendatacommunities.org/id/metropolitan-district-council/wolverhampton","AMZN Mktp UK MW5260UY4","1.04","Intensive Family Support Team","5942","Books","25/03/2019"
"Wolverhampton City Council","http://opendatacommunities.org/id/metropolitan-district-council/wolverhampton","ARGOS LTD","95.97","Upper Pendeford Farm Childrens Home","5310","Equipment - Purchase","25/03/2019"
"Wolverhampton City Council","http://opendatacommunities.org/id/metropolitan-district-council/wolverhampton","WICKES WOLVERHAMPTON","6.25","Upper Pendeford Farm Childrens Home","5211","Materials","25/03/2019"
"Wolverhampton City Council","http://opendatacommunities.org/id/metropolitan-district-council/wolverhampton","HOMERLECTRIC LTD","166.67","Bert Williams Leisure Centre","5722","Equipment - Purchase","25/03/2019"
"Wolverhampton City Council","http://opendatacommunities.org/id/metropolitan-district-council/wolverhampton","EB  SKILLS FOR EAL TEA","112.50","Citizenship, Language & Learning","7399","Training Expenses","22/03/2019"
"Wolverhampton City Council","http://opendatacommunities.org/id/metropolitan-district-council/wolverhampton","ALBRIGHTON DENTAL SURG","38.00","Adult Services - West","8021","Services - Professional Fees","22/03/2019"
"Wolverhampton City Council","http://opendatacommunities.org/id/metropolitan-district-council/wolverhampton","B&M RETAIL LTD","290.01","LAC Transitions Team","5310","Client Allowances","22/03/2019"
"Wolverhampton City Council","http://opendatacommunities.org/id/metropolitan-district-council/wolverhampton","ARGOS LTD","328.98","LAC Transitions Team","5310","Client Allowances","22/03/2019"
"Wolverhampton City Council","http://opendatacommunities.org/id/metropolitan-district-council/wolverhampton","HOME BARGAINS","16.26","LAC Transitions Team","5251","Client Allowances","22/03/2019"
"Wolverhampton City Council","http://opendatacommunities.org/id/metropolitan-district-council/wolverhampton","WWW.ARGOS.CO.UK","61.62","LAC Transitions Team","5310","Client Allowances","22/03/2019"
"Wolverhampton City Council","http://opendatacommunities.org/id/metropolitan-district-council/wolverhampton","000002200500000","200.00","Childrens with Disabilities Team","6011","Financial Assistance In Exceptional Circ","22/03/2019"
"Wolverhampton City Council","http://opendatacommunities.org/id/metropolitan-district-council/wolverhampton","ARGOS RETAIL GROUP","16.67","LAC Transitions Team","5310","Client Allowances","22/03/2019"
"Wolverhampton City Council","http://opendatacommunities.org/id/metropolitan-district-council/wolverhampton","AMZN Mktp UK MW8NV8UE4","241.66","LAC Transitions Team","5942","Client Allowances","22/03/2019"
"Wolverhampton City Council","http://opendatacommunities.org/id/metropolitan-district-council/wolverhampton","TESCO STORES 5194","39.40","Towers Outdoor Education Centre","5411","Provisions (Not for resale)","22/03/2019"
"Wolverhampton City Council","http://opendatacommunities.org/id/metropolitan-district-council/wolverhampton","000002200500000","250.00","CIN/CP Social Work Unit - Area 6","6011","Financial Assistance In Exceptional Circ","22/03/2019"
"Wolverhampton City Council","http://opendatacommunities.org/id/metropolitan-district-council/wolverhampton","HYDOR LIMITED","283.68","Aldersley Leisure Village","5065","Equipment - R & M","22/03/2019"
"Wolverhampton City Council","http://opendatacommunities.org/id/metropolitan-district-council/wolverhampton","HIGHSTREETVOUCHERS","40.00","Work Box","8641","Client Allowances","22/03/2019"
"Wolverhampton City Council","http://opendatacommunities.org/id/metropolitan-district-council/wolverhampton","ASDA SUPERSTORE","5.14","Mayoral Expenses","5411","Hospitality","22/03/2019"
"Wolverhampton City Council","http://opendatacommunities.org/id/metropolitan-district-council/wolverhampton","AMZN MKTP UK MW4SG79E4","2.07","Mayoral Expenses","5942","Comms - Mobile Telephones","22/03/2019"
"Wolverhampton City Council","http://opendatacommunities.org/id/metropolitan-district-council/wolverhampton","WWW.ICO.GOV.UK","40.00","Business Support Services","9399","Services - Fees and Charges","22/03/2019"
"Wolverhampton City Council","http://opendatacommunities.org/id/metropolitan-district-council/wolverhampton","SA Image Rec. Inegrate","139.00","LAC Transitions Team","5045","Computing - Purchase of Hardware","22/03/2019"
"Wolverhampton City Council","http://opendatacommunities.org/id/metropolitan-district-council/wolverhampton","AMZN Mktp UK MW26N7U44","9.78","Youth Offending Team","5942","Materials","22/03/2019"
"Wolverhampton City Council","http://opendatacommunities.org/id/metropolitan-district-council/wolverhampton","ASDA GROCERIES ONLINE","-7.40","Upper Pendeford Farm Childrens Home","5411","Provisions (Not for resale)","22/03/2019"
"Wolverhampton City Council","http://opendatacommunities.org/id/metropolitan-district-council/wolverhampton","ASDA GROCERIES ONLINE","222.05","Upper Pendeford Farm Childrens Home","5411","Provisions (Not for resale)","22/03/2019"
"Wolverhampton City Council","http://opendatacommunities.org/id/metropolitan-district-council/wolverhampton","ARGOS WOLVERHAMPTO","10.99","Emergency Duty Team","5310","Equipment - Purchase","22/03/2019"
"Wolverhampton City Council","http://opendatacommunities.org/id/metropolitan-district-council/wolverhampton","ARGOS WOLVERHAMPTO","50.98","Emergency Duty Team","5310","Equipment - Purchase","22/03/2019"
"Wolverhampton City Council","http://opendatacommunities.org/id/metropolitan-district-council/wolverhampton","SELECT TECHNOLOGY LTD","360.00","AES Staff Development","5734","Training Expenses","22/03/2019"
"Wolverhampton City Council","http://opendatacommunities.org/id/metropolitan-district-council/wolverhampton","LOYD 89 CHURCH STREET","10.00","EIP Locality 1","6011","Grant Payments","22/03/2019"
"Wolverhampton City Council","http://opendatacommunities.org/id/metropolitan-district-council/wolverhampton","AMZN Mktp UK MW3OP49Q4","4.39","Youth Offending Team","5942","Referral Orders (YOT)","22/03/2019"
"Wolverhampton City Council","http://opendatacommunities.org/id/metropolitan-district-council/wolverhampton","HOMEBASE LTD 103","12.00","Public Conveniences","5211","Materials","22/03/2019"
"Wolverhampton City Council","http://opendatacommunities.org/id/metropolitan-district-council/wolverhampton","IDC WRISTBANDS","17.50","Technical Support","5699","Equipment - Purchase","22/03/2019"
"Wolverhampton City Council","http://opendatacommunities.org/id/metropolitan-district-council/wolverhampton","FS160 CLAREGATE","5.02","Duke Street Bungalows","5541","Equipment - R & M","22/03/2019"
"Wolverhampton City Council","http://opendatacommunities.org/id/metropolitan-district-council/wolverhampton","B & Q 1243","14.06","Bradley Resource Centre","5211","Cleaning Supplies and Materials","22/03/2019"
"Wolverhampton City Council","http://opendatacommunities.org/id/metropolitan-district-council/wolverhampton","AMZN Mktp UK MW87M09W4","39.95","Education And Access","5942","Equipment - Purchase","22/03/2019"
"Wolverhampton City Council","http://opendatacommunities.org/id/metropolitan-district-council/wolverhampton","HM PASSPORT OFFICE","58.50","LAC Team","9399","Financial Assistance In Exceptional Circ","22/03/2019"
"Wolverhampton City Council","http://opendatacommunities.org/id/metropolitan-district-council/wolverhampton","Cross Country Trains","210.55","Court Team","4112","Section 17","22/03/2019"
"Wolverhampton City Council","http://opendatacommunities.org/id/metropolitan-district-council/wolverhampton","WP-CENTRAL TAXIS L","16.00","CAT","4121","Section 17","22/03/2019"
"Wolverhampton City Council","http://opendatacommunities.org/id/metropolitan-district-council/wolverhampton","MUSIC EXCHANGE","19.75","Music Support Team","5733","Books","22/03/2019"
"Wolverhampton City Council","http://opendatacommunities.org/id/metropolitan-district-council/wolverhampton","AMZN Mktp UK MW3DA9U34","2.33","Music Support Team","5942","Stationery","22/03/2019"
"Wolverhampton City Council","http://opendatacommunities.org/id/metropolitan-district-council/wolverhampton","AMZN Mktp UK MW1YN3U04","3.79","Music Support Team","5942","Books","22/03/2019"
"Wolverhampton City Council","http://opendatacommunities.org/id/metropolitan-district-council/wolverhampton","AMZN Mktp UK MW0AV2UR4","9.68","Music Support Team","5942","Books","22/03/2019"
"Wolverhampton City Council","http://opendatacommunities.org/id/metropolitan-district-council/wolverhampton","CT WOLVERHAMPTON","129.17","LAC Transitions Team","8398","Client Allowances","21/03/2019"
"Wolverhampton City Council","http://opendatacommunities.org/id/metropolitan-district-council/wolverhampton","AMZN MKTP UK MW99Q9764","25.20","Key to Inspiration","5942","Fixtures and Fittings - Purchases","21/03/2019"
"Wolverhampton City Council","http://opendatacommunities.org/id/metropolitan-district-council/wolverhampton","AMZN MKTP UK MW5I997A4","103.28","Key to Inspiration","5942","Furniture","21/03/2019"
"Wolverhampton City Council","http://opendatacommunities.org/id/metropolitan-district-council/wolverhampton","PP EDENFIELD","60.00","Youth Offending Team","8999","Services - Professional Fees","21/03/2019"
"Wolverhampton City Council","http://opendatacommunities.org/id/metropolitan-district-council/wolverhampton","ALBRIGHTON HARDWARE","29.12","Aldersley Leisure Village","5251","Equipment - Purchase","21/03/2019"
"Wolverhampton City Council","http://opendatacommunities.org/id/metropolitan-district-council/wolverhampton","AMZN MKTP UK MW76I8784","26.99","Private Hire Vehicles","5942","Books","21/03/2019"
"Wolverhampton City Council","http://opendatacommunities.org/id/metropolitan-district-council/wolverhampton","SAINSBURYS (2340)","59.50","Wholly Owned Company - Operations","5411","Provisions (Not for resale)","21/03/2019"
"Wolverhampton City Council","http://opendatacommunities.org/id/metropolitan-district-council/wolverhampton","SUBABA SYSTEMS","223.28","Aldersley Leisure Village","5111","Equipment - R & M","21/03/2019"
"Wolverhampton City Council","http://opendatacommunities.org/id/metropolitan-district-council/wolverhampton","WWW.SAFELINCS.CO.UK","248.88","Bert Williams Leisure Centre","5065","Equipment - R & M","21/03/2019"
"Wolverhampton City Council","http://opendatacommunities.org/id/metropolitan-district-council/wolverhampton","AMZN MKTP UK MW2SS17E4","12.07","Mayoral Expenses","5942","Comms - Mobile Telephones","21/03/2019"
"Wolverhampton City Council","http://opendatacommunities.org/id/metropolitan-district-council/wolverhampton","MOTEL ONE MANCHESTER P","65.42","LAC Education Team (LACE)","7011","Services - Supplies & Services to users","21/03/2019"
"Wolverhampton City Council","http://opendatacommunities.org/id/metropolitan-district-council/wolverhampton","ASDA SUPERSTORE","31.36","Youth Offending Team","5411","Provisions (Not for resale)","21/03/2019"
"Wolverhampton City Council","http://opendatacommunities.org/id/metropolitan-district-council/wolverhampton","AMZN Mktp UK MW32289L4","44.98","Youth Offending Team","5942","Direct Work With Children","21/03/2019"
"Wolverhampton City Council","http://opendatacommunities.org/id/metropolitan-district-council/wolverhampton","TIMPSON LTD","24.00","Youth Offending Team","7251","Fixtures and Fittings - R&M","21/03/2019"
"Wolverhampton City Council","http://opendatacommunities.org/id/metropolitan-district-council/wolverhampton","Amazon Prime MW2QM59K4","6.66","Central Baths","5968","Subscriptions","21/03/2019"
"Wolverhampton City Council","http://opendatacommunities.org/id/metropolitan-district-council/wolverhampton","IKEA LTD 142 BIRMINGHA","142.00","Upper Pendeford Farm Childrens Home","5712","Equipment - Purchase","21/03/2019"
"Wolverhampton City Council","http://opendatacommunities.org/id/metropolitan-district-council/wolverhampton","POST OFFICE COUNTER","7.30","LAC Team","9402","Comms - Postage","21/03/2019"
"Wolverhampton City Council","http://opendatacommunities.org/id/metropolitan-district-council/wolverhampton","SAINSBURYS SACAT (2340","7.00","Emergency Duty Team","5411","Provisions (Not for resale)","21/03/2019"
"Wolverhampton City Council","http://opendatacommunities.org/id/metropolitan-district-council/wolverhampton","ASDA SUPERSTORE","54.04","LAC Transitions Team","5411","Client Allowances","21/03/2019"
"Wolverhampton City Council","http://opendatacommunities.org/id/metropolitan-district-council/wolverhampton","RICS COM GBP CYBS","42.00","Strategic Asset Management - General","8699","Subscriptions","21/03/2019"
"Wolverhampton City Council","http://opendatacommunities.org/id/metropolitan-district-council/wolverhampton","NEW ELECTRICAL DIST LT","36.20","Culwell Street Depot","5065","Materials","21/03/2019"
"Wolverhampton City Council","http://opendatacommunities.org/id/metropolitan-district-council/wolverhampton","EBUYER (UK) LTD","29.10","Strategic ICTS (ICT Serv Budget)","5722","Equipment - Purchase","21/03/2019"
"Wolverhampton City Council","http://opendatacommunities.org/id/metropolitan-district-council/wolverhampton","FACEBK 5FX4QLWAM2","12.75","Education And Access","7311","Marketing \ Non-staff advertising","21/03/2019"
"Wolverhampton City Council","http://opendatacommunities.org/id/metropolitan-district-council/wolverhampton","AMZN MKTP UK MW93F87V4","108.32","Shaw Road Civic Amenity Site","5942","Equipment - Purchase","21/03/2019"
"Wolverhampton City Council","http://opendatacommunities.org/id/metropolitan-district-council/wolverhampton","NATWEST BANK","200.00","CAT","6011","Section 17","21/03/2019"
"Wolverhampton City Council","http://opendatacommunities.org/id/metropolitan-district-council/wolverhampton","MARKS&SPENCER PLC SACA","2.50","Civic Centre Catering","5411","Provisions (Not for resale)","21/03/2019"
"Wolverhampton City Council","http://opendatacommunities.org/id/metropolitan-district-council/wolverhampton","CITY OF WOLVERHAMPTON","13.33","LAC Transitions Team","9399","Client Allowances","21/03/2019"
"Wolverhampton City Council","http://opendatacommunities.org/id/metropolitan-district-council/wolverhampton","HM PASSPORT OFFICE","85.00","LAC Transitions Team","9399","Client Allowances","21/03/2019"
"Wolverhampton City Council","http://opendatacommunities.org/id/metropolitan-district-council/wolverhampton","TOOLSTATION LTD","13.35","Education Catering - General Overheads","5251","Equipment - R & M","21/03/2019"
"Wolverhampton City Council","http://opendatacommunities.org/id/metropolitan-district-council/wolverhampton","J VAN VLIET BIRMINGHAM","99.45","Creative Studies Delivery Area","5399","Materials for resale","21/03/2019"
"Wolverhampton City Council","http://opendatacommunities.org/id/metropolitan-district-council/wolverhampton","AMZN Mktp UK MW6SZ9KM4","11.95","-","5942","Books","20/03/2019"
"Wolverhampton City Council","http://opendatacommunities.org/id/metropolitan-district-council/wolverhampton","SAINSBURYS SACAT (2340","14.92","Key to Inspiration","5411","Hospitality","20/03/2019"
"Wolverhampton City Council","http://opendatacommunities.org/id/metropolitan-district-council/wolverhampton","WWW.ARGOS.CO.UK","126.94","LAC Transitions Team","5310","Equipment - Purchase","20/03/2019"
"Wolverhampton City Council","http://opendatacommunities.org/id/metropolitan-district-council/wolverhampton","WWW.ARGOS.CO.UK","169.99","LAC Transitions Team","5310","Equipment - Purchase","20/03/2019"
"Wolverhampton City Council","http://opendatacommunities.org/id/metropolitan-district-council/wolverhampton","London Northwestern Ra","26.90","Audience Development","4112","Public Transport","20/03/2019"
"Wolverhampton City Council","http://opendatacommunities.org/id/metropolitan-district-council/wolverhampton","WM MORRISON FOOD.COM","147.89","Discretionary Fund","5411","Materials","20/03/2019"
"Wolverhampton City Council","http://opendatacommunities.org/id/metropolitan-district-council/wolverhampton","NATWEST BANK","200.00","CAT","6011","No Recourse to Public Funds","20/03/2019"
"Wolverhampton City Council","http://opendatacommunities.org/id/metropolitan-district-council/wolverhampton","ARGOS RETAIL GROUP","243.72","LAC Transitions Team","5310","Client Allowances","20/03/2019"
"Wolverhampton City Council","http://opendatacommunities.org/id/metropolitan-district-council/wolverhampton","ROYAL CARPETS","125.00","LAC Transitions Team","5713","Client Allowances","20/03/2019"
"Wolverhampton City Council","http://opendatacommunities.org/id/metropolitan-district-council/wolverhampton","REDWINGS LODGE","37.46","Emergency Duty Team","7011","Services - Supplies & Services to users","20/03/2019"
"Wolverhampton City Council","http://opendatacommunities.org/id/metropolitan-district-council/wolverhampton","Virgin Trains","96.55","Fostering Team & Allowances","4112","Public Transport","20/03/2019"
"Wolverhampton City Council","http://opendatacommunities.org/id/metropolitan-district-council/wolverhampton","CROMARTIE HOBBYCRAFT L","101.76","Communications & Marketing - General","5970","Materials","20/03/2019"
"Wolverhampton City Council","http://opendatacommunities.org/id/metropolitan-district-council/wolverhampton","WOLVERHAMPTON T/O","8.00","LAC Education Team (LACE)","4112","Public Transport","20/03/2019"
"Wolverhampton City Council","http://opendatacommunities.org/id/metropolitan-district-council/wolverhampton","Central Taxis Limited","6.10","Corporate Parenting","4121","Client Transport","20/03/2019"
"Wolverhampton City Council","http://opendatacommunities.org/id/metropolitan-district-council/wolverhampton","Central Taxis Limited","6.40","Corporate Parenting","4121","Client Transport","20/03/2019"
"Wolverhampton City Council","http://opendatacommunities.org/id/metropolitan-district-council/wolverhampton","SP   HELPFUL THING CO.","33.28","Corporate Parenting","5734","Computing - Purchase of Software","20/03/2019"
"Wolverhampton City Council","http://opendatacommunities.org/id/metropolitan-district-council/wolverhampton","CT WOLVERHAMPTON","125.00","LAC Transitions Team","8398","Client Allowances","20/03/2019"
"Wolverhampton City Council","http://opendatacommunities.org/id/metropolitan-district-council/wolverhampton","Trainline","9.41","Youth Offending Team","4112","Public Transport","20/03/2019"
"Wolverhampton City Council","http://opendatacommunities.org/id/metropolitan-district-council/wolverhampton","Amazon.co.uk MW21Q3K54","40.00","Strategic ICTS (ICT Serv Budget)","5969","Equipment - Purchase","20/03/2019"
"Wolverhampton City Council","http://opendatacommunities.org/id/metropolitan-district-council/wolverhampton","WWW.IKEA.COM","339.00","LAC Transitions Team","5712","Client Allowances","20/03/2019"
"Wolverhampton City Council","http://opendatacommunities.org/id/metropolitan-district-council/wolverhampton","SMYTHS TOYS WALSALL","37.98","Upper Pendeford Farm Childrens Home","5945","Equipment - Purchase","20/03/2019"
"Wolverhampton City Council","http://opendatacommunities.org/id/metropolitan-district-council/wolverhampton","CardtronicsUK","30.00","Emergency Duty Team","6011","Financial Assistance In Exceptional Circ","20/03/2019"
"Wolverhampton City Council","http://opendatacommunities.org/id/metropolitan-district-council/wolverhampton","WWW.WOLVERHAMPTON.GOV.","500.00","LAC Transitions Team","9399","Client Allowances","20/03/2019"
"Wolverhampton City Council","http://opendatacommunities.org/id/metropolitan-district-council/wolverhampton","WWW.WOLVERHAMPTON.GOV.","441.23","LAC Transitions Team","9399","Client Allowances","20/03/2019"
"Wolverhampton City Council","http://opendatacommunities.org/id/metropolitan-district-council/wolverhampton","HM PASSPORT OFFICE","75.50","LAC Transitions Team","9399","Client Allowances","20/03/2019"
"Wolverhampton City Council","http://opendatacommunities.org/id/metropolitan-district-council/wolverhampton","Trainline","103.99","Wolverhampton Indoor and Open Market","4112","Public Transport","20/03/2019"
"Wolverhampton City Council","http://opendatacommunities.org/id/metropolitan-district-council/wolverhampton","B & Q 1243","3.65","Ernest Bold Court","5211","Materials","20/03/2019"
"Wolverhampton City Council","http://opendatacommunities.org/id/metropolitan-district-council/wolverhampton","B & Q 1243","11.35","Learning Disabilities Management","5211","Equipment - R & M","20/03/2019"
"Wolverhampton City Council","http://opendatacommunities.org/id/metropolitan-district-council/wolverhampton","WICKES WOLVERHAMPTON","13.32","Specialist Support Service - North","5211","Equipment - R & M","20/03/2019"
"Wolverhampton City Council","http://opendatacommunities.org/id/metropolitan-district-council/wolverhampton","WICKES WOLVERHAMPTON","31.25","Specialist Support Service - North","5211","Equipment - R & M","20/03/2019"
"Wolverhampton City Council","http://opendatacommunities.org/id/metropolitan-district-council/wolverhampton","POST OFFICE COUNTER","7.30","LAC Team","9402","Comms - Postage","20/03/2019"
"Wolverhampton City Council","http://opendatacommunities.org/id/metropolitan-district-council/wolverhampton","HM PASSPORT OFFICE","58.50","LAC Team","9399","Financial Assistance In Exceptional Circ","20/03/2019"
"Wolverhampton City Council","http://opendatacommunities.org/id/metropolitan-district-council/wolverhampton","WP-CENTRAL TAXIS L","61.92","LAC Team","4121","Client Transport","20/03/2019"
"Wolverhampton City Council","http://opendatacommunities.org/id/metropolitan-district-council/wolverhampton","WP-CENTRAL TAXIS L","149.50","LAC Team","4121","Client Transport","20/03/2019"
"Wolverhampton City Council","http://opendatacommunities.org/id/metropolitan-district-council/wolverhampton","J VAN VLIET BIRMINGHAM","267.68","Creative Studies Delivery Area","5399","Materials for resale","20/03/2019"
"Wolverhampton City Council","http://opendatacommunities.org/id/metropolitan-district-council/wolverhampton","J VAN VLIET BIRMINGHAM","46.48","Creative Studies Delivery Area","5399","Materials","20/03/2019"
"Wolverhampton City Council","http://opendatacommunities.org/id/metropolitan-district-council/wolverhampton","REDWINGS LODGE","74.92","CIN/CP Social Work Unit - Area 8","7011","Section 17","20/03/2019"
"Wolverhampton City Council","http://opendatacommunities.org/id/metropolitan-district-council/wolverhampton","WWW.ICO.GOV.UK","40.00","Members Expenses","9399","Subscriptions","20/03/2019"
"Wolverhampton City Council","http://opendatacommunities.org/id/metropolitan-district-council/wolverhampton","WWW.ICO.GOV.UK","40.00","Members Expenses","9399","Subscriptions","20/03/2019"
"Wolverhampton City Council","http://opendatacommunities.org/id/metropolitan-district-council/wolverhampton","Virgin Trains","58.80","Members Expenses","4112","Public Transport","20/03/2019"
"Wolverhampton City Council","http://opendatacommunities.org/id/metropolitan-district-council/wolverhampton","AMZN MKTP UK MW06P3214",".73","Key to Inspiration","5942","Fixtures and Fittings - Purchases","19/03/2019"
"Wolverhampton City Council","http://opendatacommunities.org/id/metropolitan-district-council/wolverhampton","SAINSBURYS (2340)","15.05","Key to Inspiration","5411","Hospitality","19/03/2019"
"Wolverhampton City Council","http://opendatacommunities.org/id/metropolitan-district-council/wolverhampton","ASDA GROCERIES ONLINE","136.97","Bradley Resource Centre","5411","Provisions (Not for resale)","19/03/2019"
"Wolverhampton City Council","http://opendatacommunities.org/id/metropolitan-district-council/wolverhampton","CITY OF WOLVERHAMPTON","27.00","IMPACT","9399","Services - Fees and Charges","19/03/2019"
"Wolverhampton City Council","http://opendatacommunities.org/id/metropolitan-district-council/wolverhampton","ASDA SUPERSTORE","80.52","Quality Assurance & Policies","5411","Provisions (Not for resale)","19/03/2019"
"Wolverhampton City Council","http://opendatacommunities.org/id/metropolitan-district-council/wolverhampton","NATWEST BANK","200.00","CAT","6011","No Recourse to Public Funds","19/03/2019"
"Wolverhampton City Council","http://opendatacommunities.org/id/metropolitan-district-council/wolverhampton","TESCO STORES 5194","186.99","Towers Outdoor Education Centre","5411","Provisions (Not for resale)","19/03/2019"
"Wolverhampton City Council","http://opendatacommunities.org/id/metropolitan-district-council/wolverhampton","AMI","90.00","Towers Outdoor Education Centre","5734","Equipment - Purchase","19/03/2019"
"Wolverhampton City Council","http://opendatacommunities.org/id/metropolitan-district-council/wolverhampton","WP-CENTRAL TAXIS L","89.10","Fostering Team & Allowances","4121","Client Transport","19/03/2019"
"Wolverhampton City Council","http://opendatacommunities.org/id/metropolitan-district-council/wolverhampton","FACEBK  AR5D4LWAR2","500.00","Communications & Marketing - General","7311","Marketing \ Non-staff advertising","19/03/2019"
"Wolverhampton City Council","http://opendatacommunities.org/id/metropolitan-district-council/wolverhampton","WOLVERHAMPTON SST","11.80","Curatorial - Cultural Learning","4112","Public Transport","19/03/2019"
"Wolverhampton City Council","http://opendatacommunities.org/id/metropolitan-district-council/wolverhampton","CUMMINGS BROTHERS LOCK","12.50","Culwell Street Depot","7399","R4007","19/03/2019"
"Wolverhampton City Council","http://opendatacommunities.org/id/metropolitan-district-council/wolverhampton","AMZN Mktp UK MW2QJ8224","44.66","Specialist Support Service - North","5942","Equipment - R & M","19/03/2019"
"Wolverhampton City Council","http://opendatacommunities.org/id/metropolitan-district-council/wolverhampton","ASDA GROCERIES ONLINE","72.06","Ernest Bold Court","5411","Provisions (Not for resale)","19/03/2019"
"Wolverhampton City Council","http://opendatacommunities.org/id/metropolitan-district-council/wolverhampton","AMZN MKTP UK MW01456Z4","35.37","Key to Inspiration","5942","Fixtures and Fittings - Purchases","18/03/2019"
"Wolverhampton City Council","http://opendatacommunities.org/id/metropolitan-district-council/wolverhampton","AMZN Mktp UK MW1P59QP4","9.94","Key to Inspiration","5942","Fixtures and Fittings - R&M","18/03/2019"
"Wolverhampton City Council","http://opendatacommunities.org/id/metropolitan-district-council/wolverhampton","ASDA STORE","22.03","Bradley Resource Centre","5411","Provisions (Not for resale)","18/03/2019"
"Wolverhampton City Council","http://opendatacommunities.org/id/metropolitan-district-council/wolverhampton","ASDA GROCERIES ONLINE","-4.06","-","5411","Provisions (Not for resale)","18/03/2019"
"Wolverhampton City Council","http://opendatacommunities.org/id/metropolitan-district-council/wolverhampton","ASDA GROCERIES ONLINE","115.74","Bradley Resource Centre","5411","Provisions (Not for resale)","18/03/2019"
"Wolverhampton City Council","http://opendatacommunities.org/id/metropolitan-district-council/wolverhampton","WWW.WMCA.CO.UK","25.90","IMPACT","9399","Services - Fees and Charges","18/03/2019"
"Wolverhampton City Council","http://opendatacommunities.org/id/metropolitan-district-council/wolverhampton","THE IMC GROUP LTD","565.65","Collections & Conservation","5065","Equipment - R & M","18/03/2019"
"Wolverhampton City Council","http://opendatacommunities.org/id/metropolitan-district-council/wolverhampton","AMZN Mktp UK MW8LC0Q64","6.67","Towers Outdoor Education Centre","5942","Equipment - Purchase","18/03/2019"
"Wolverhampton City Council","http://opendatacommunities.org/id/metropolitan-district-council/wolverhampton","ENJOY WOLVERHAMPTON","101.00","Wholly Owned Company - Operations","5399","Equipment - Purchase","18/03/2019"
"Wolverhampton City Council","http://opendatacommunities.org/id/metropolitan-district-council/wolverhampton","GOOGLE  ADS9680351324","500.00","Communications & Marketing - General","5968","Subscriptions","18/03/2019"
"Wolverhampton City Council","http://opendatacommunities.org/id/metropolitan-district-council/wolverhampton","AMZN Mktp UK MW3VE16U4","65.80","Outreach","5942","Books","18/03/2019"
"Wolverhampton City Council","http://opendatacommunities.org/id/metropolitan-district-council/wolverhampton","WISEPOPS","83.27","City Direct","7372","Computing - Purchase of Software","18/03/2019"
"Wolverhampton City Council","http://opendatacommunities.org/id/metropolitan-district-council/wolverhampton","Trainline","-46.70","LAC Transitions Team","4112","Public Transport","18/03/2019"
"Wolverhampton City Council","http://opendatacommunities.org/id/metropolitan-district-council/wolverhampton","ARGOS LTD","20.82","Cemeteries","5310","Equipment - Purchase","18/03/2019"
"Wolverhampton City Council","http://opendatacommunities.org/id/metropolitan-district-council/wolverhampton","AMZN Mktp UK MW4J716X4","32.90","Upper Pendeford Farm Childrens Home","5942","Equipment - Purchase","18/03/2019"
"Wolverhampton City Council","http://opendatacommunities.org/id/metropolitan-district-council/wolverhampton","SEVERN TRENT WATER","232.12","LAC Team","4900","Financial Assistance In Exceptional Circ","18/03/2019"
"Wolverhampton City Council","http://opendatacommunities.org/id/metropolitan-district-council/wolverhampton","ASDA GROCERIES ONLINE","-1.95","Central Costs","5411","Provisions (Not for resale)","18/03/2019"
"Wolverhampton City Council","http://opendatacommunities.org/id/metropolitan-district-council/wolverhampton","TESCO STORES 6667","10.14","Towers Outdoor Education Centre","5411","Provisions (Not for resale)","18/03/2019"
"Wolverhampton City Council","http://opendatacommunities.org/id/metropolitan-district-council/wolverhampton","ASDA GROCERIES ONLINE","55.28","Creative Studies Delivery Area","5411","Provisions (Not for resale)","18/03/2019"
"Wolverhampton City Council","http://opendatacommunities.org/id/metropolitan-district-council/wolverhampton","WATERSTONES","19.99","Archives","5942","Books","18/03/2019"
"Wolverhampton City Council","http://opendatacommunities.org/id/metropolitan-district-council/wolverhampton","ARGOS RETAIL GROUP","59.98","Wolverhampton Indoor and Open Market","5310","Equipment - Purchase","18/03/2019"
"Wolverhampton City Council","http://opendatacommunities.org/id/metropolitan-district-council/wolverhampton","AMZN Mktp UK MW3XS0644","24.57","Bradley Resource Centre","5942","Materials","18/03/2019"
"Wolverhampton City Council","http://opendatacommunities.org/id/metropolitan-district-council/wolverhampton","ASDA GROCERIES ONLINE","111.59","Duke Street Bungalows","5411","Provisions (Not for resale)","18/03/2019"
"Wolverhampton City Council","http://opendatacommunities.org/id/metropolitan-district-council/wolverhampton","Wix.com","93.13","Technical Support","5817","Computing - Purchase of Software","18/03/2019"
"Wolverhampton City Council","http://opendatacommunities.org/id/metropolitan-district-council/wolverhampton","Amazon.co.uk MW32626N4","13.81","Technical Support","5969","Equipment - Purchase","18/03/2019"
"Wolverhampton City Council","http://opendatacommunities.org/id/metropolitan-district-council/wolverhampton","WICKES WOLVERHAMPTON","6.65","Learning Disabilities Management","5211","Equipment - R & M","18/03/2019"
"Wolverhampton City Council","http://opendatacommunities.org/id/metropolitan-district-council/wolverhampton","WICKES WOLVERHAMPTON","1.46","Learning Disabilities Management","5211","Equipment - R & M","18/03/2019"
"Wolverhampton City Council","http://opendatacommunities.org/id/metropolitan-district-council/wolverhampton","YMLP.COM","105.00","Audience Development","7372","Subscriptions","18/03/2019"
"Wolverhampton City Council","http://opendatacommunities.org/id/metropolitan-district-council/wolverhampton","ASDA GROCERIES ONLINE","67.39","Ernest Bold Court","5411","Provisions (Not for resale)","18/03/2019"
"Wolverhampton City Council","http://opendatacommunities.org/id/metropolitan-district-council/wolverhampton","HERON FOODS LTD","9.26","Ernest Bold Court","5499","Provisions (Not for resale)","18/03/2019"
"Wolverhampton City Council","http://opendatacommunities.org/id/metropolitan-district-council/wolverhampton","Trainline","188.75","Head of Service - CINCP","4112","Public Transport","18/03/2019"
"Wolverhampton City Council","http://opendatacommunities.org/id/metropolitan-district-council/wolverhampton","Trainline","206.55","Head of Service - CINCP","4112","Public Transport","18/03/2019"
"Wolverhampton City Council","http://opendatacommunities.org/id/metropolitan-district-council/wolverhampton","Virgin Trains","181.60","Members Expenses","4112","Public Transport","18/03/2019"
"Wolverhampton City Council","http://opendatacommunities.org/id/metropolitan-district-council/wolverhampton","CARESHOP","199.01","Specialist Support Service - North","5999","Cleaning Supplies and Materials","18/03/2019"
"Wolverhampton City Council","http://opendatacommunities.org/id/metropolitan-district-council/wolverhampton","DUDLEY MBC  INTERN","16.50","Court Team","8999","Section 17","18/03/2019"
"Wolverhampton City Council","http://opendatacommunities.org/id/metropolitan-district-council/wolverhampton","Wolverhampton Fair Tra","99.36","Civic Centre Catering","5411","Provisions (Not for resale)","18/03/2019"
"Wolverhampton City Council","http://opendatacommunities.org/id/metropolitan-district-council/wolverhampton","NO 5 CHAMBERS LTD","360.00","Central Training","8111","Training Expenses","18/03/2019"
"Wolverhampton City Council","http://opendatacommunities.org/id/metropolitan-district-council/wolverhampton","SAINSBURYS 2040","98.75","Duke Street Bungalows","5411","Provisions (Not for resale)","18/03/2019"
"Wolverhampton City Council","http://opendatacommunities.org/id/metropolitan-district-council/wolverhampton","AMZN Mktp UK MW5AN9SF4","28.70","Strategic ICTS (ICT Serv Budget)","5942","Computing - Purchase of Hardware","18/03/2019"
"Wolverhampton City Council","http://opendatacommunities.org/id/metropolitan-district-council/wolverhampton","TFM FARM & COUNTRY SUP","-5.76","Northicote Farm","5399","Protective Clothing","18/03/2019"
"Wolverhampton City Council","http://opendatacommunities.org/id/metropolitan-district-council/wolverhampton","CO-OP GROUP 070362","5.80","Northicote Farm","5411","Provisions (Not for resale)","18/03/2019"
"Wolverhampton City Council","http://opendatacommunities.org/id/metropolitan-district-council/wolverhampton","WICKES WOLVERHAMPTON","71.62","Northicote Farm","5211","Equipment - Purchase","18/03/2019"
"Wolverhampton City Council","http://opendatacommunities.org/id/metropolitan-district-council/wolverhampton","TFM FARM & COUNTRY SUP","35.60","Northicote Farm","5399","Equipment - Purchase","18/03/2019"
"Wolverhampton City Council","http://opendatacommunities.org/id/metropolitan-district-council/wolverhampton","Trainline","117.43","LAC Transitions Team","4112","Client Allowances","15/03/2019"
"Wolverhampton City Council","http://opendatacommunities.org/id/metropolitan-district-council/wolverhampton","ARGOS RETAIL GROUP","150.82","LAC Transitions Team","5310","Equipment - Purchase","15/03/2019"
"Wolverhampton City Council","http://opendatacommunities.org/id/metropolitan-district-council/wolverhampton","B & Q 1169","12.94","Technician","5211","Materials","15/03/2019"
"Wolverhampton City Council","http://opendatacommunities.org/id/metropolitan-district-council/wolverhampton","000002200500000","250.00","Childrens with Disabilities Team","6011","Financial Assistance In Exceptional Circ","15/03/2019"
"Wolverhampton City Council","http://opendatacommunities.org/id/metropolitan-district-council/wolverhampton","ROYAL BK OF SCOTLAND","250.00","CIN/CP Social Work Unit - Area 6","6011","No Recourse to Public Funds","15/03/2019"
"Wolverhampton City Council","http://opendatacommunities.org/id/metropolitan-district-council/wolverhampton","Amazon.co.uk MW9IQ6QE4","16.67","Adoption and Residence Team & Allowances","5969","Equipment - Purchase","15/03/2019"
"Wolverhampton City Council","http://opendatacommunities.org/id/metropolitan-district-council/wolverhampton","AMZN Mktp UK MW60B2B94","21.99","Fostering Team & Allowances","5942","Books","15/03/2019"
"Wolverhampton City Council","http://opendatacommunities.org/id/metropolitan-district-council/wolverhampton","TESCO STORES 5194","-8.60","Towers Outdoor Education Centre","5411","Provisions (Not for resale)","15/03/2019"
"Wolverhampton City Council","http://opendatacommunities.org/id/metropolitan-district-council/wolverhampton","WYNNSTAY ARGICULTURAL","348.89","Towers Outdoor Education Centre","5311","Fixtures and Fittings - Purchases","15/03/2019"
"Wolverhampton City Council","http://opendatacommunities.org/id/metropolitan-district-council/wolverhampton","FUEL CARD SERVICES LTD","345.79","Towers Outdoor Education Centre","7399","Petrol","15/03/2019"
"Wolverhampton City Council","http://opendatacommunities.org/id/metropolitan-district-council/wolverhampton","CO-OP GROUP 070228","20.20","Towers Outdoor Education Centre","5411","Provisions (Not for resale)","15/03/2019"
"Wolverhampton City Council","http://opendatacommunities.org/id/metropolitan-district-council/wolverhampton","ICELAND","12.00","Bradley Resource Centre","5411","Provisions (Not for resale)","15/03/2019"
"Wolverhampton City Council","http://opendatacommunities.org/id/metropolitan-district-council/wolverhampton","ITUNES.COM/BILL","2.07","Corporate Parenting","5735","Computing - Purchase of Software","15/03/2019"
"Wolverhampton City Council","http://opendatacommunities.org/id/metropolitan-district-council/wolverhampton","ASDA SUPERSTORE","24.88","Youth Offending Team","5411","Provisions (Not for resale)","15/03/2019"
"Wolverhampton City Council","http://opendatacommunities.org/id/metropolitan-district-council/wolverhampton","POST OFFICE COUNTER","2.46","Cemeteries","9402","Comms - Postage","15/03/2019"
"Wolverhampton City Council","http://opendatacommunities.org/id/metropolitan-district-council/wolverhampton","WWW.UKACTIVE.COM","234.00","Healthy Life Expectancy","5641","Services - Fees and Charges","15/03/2019"
"Wolverhampton City Council","http://opendatacommunities.org/id/metropolitan-district-council/wolverhampton","POST OFFICE COUNTER","7.30","LAC Team","9402","Comms - Postage","15/03/2019"
"Wolverhampton City Council","http://opendatacommunities.org/id/metropolitan-district-council/wolverhampton","Amazon.co.uk MW28J28T4","18.02","LAC Team","5969","Equipment - Purchase","15/03/2019"
"Wolverhampton City Council","http://opendatacommunities.org/id/metropolitan-district-council/wolverhampton","Tartes and co","20.97","Managing Director","7399","Equipment - Purchase","15/03/2019"
"Wolverhampton City Council","http://opendatacommunities.org/id/metropolitan-district-council/wolverhampton","Virgin Trains","75.70","Fostering Team & Allowances","4112","Public Transport","15/03/2019"
"Wolverhampton City Council","http://opendatacommunities.org/id/metropolitan-district-council/wolverhampton","AMZN Mktp UK MW3I798F4","25.49","Strategic ICTS (ICT Serv Budget)","5942","Computing - Purchase of Hardware","15/03/2019"
"Wolverhampton City Council","http://opendatacommunities.org/id/metropolitan-district-council/wolverhampton","ASDA GROCERIES ONLINE","5.00","Upper Pendeford Farm Childrens Home","5411","Provisions (Not for resale)","15/03/2019"
"Wolverhampton City Council","http://opendatacommunities.org/id/metropolitan-district-council/wolverhampton","Virgin Trains","38.35","LAC Team","4112","Public Transport","15/03/2019"
"Wolverhampton City Council","http://opendatacommunities.org/id/metropolitan-district-council/wolverhampton","GEN REGISTER OFFICE","14.00","LAC Team","9399","Financial Assistance In Exceptional Circ","15/03/2019"
"Wolverhampton City Council","http://opendatacommunities.org/id/metropolitan-district-council/wolverhampton","WWW.GEAR4MUSIC.COM","147.28","24+ Advanced Learning Loan","5733","Equipment - Purchase","15/03/2019"
"Wolverhampton City Council","http://opendatacommunities.org/id/metropolitan-district-council/wolverhampton","Amazon.co.uk MW4JU7874","8.87","Foundation Studies","5969","Equipment - Purchase","15/03/2019"
"Wolverhampton City Council","http://opendatacommunities.org/id/metropolitan-district-council/wolverhampton","POST OFFICE COUNTER","6.50","Archives","9402","Comms - Postage","15/03/2019"
"Wolverhampton City Council","http://opendatacommunities.org/id/metropolitan-district-council/wolverhampton","Trainline","71.73","Service Director Adults","4112","Public Transport","15/03/2019"
"Wolverhampton City Council","http://opendatacommunities.org/id/metropolitan-district-council/wolverhampton","Cross Country Trains","4.90","Court Team","4112","Section 17","15/03/2019"
"Wolverhampton City Council","http://opendatacommunities.org/id/metropolitan-district-council/wolverhampton","Cross Country Trains","108.80","Court Team","4112","Section 17","15/03/2019"
"Wolverhampton City Council","http://opendatacommunities.org/id/metropolitan-district-council/wolverhampton","STAGECOACH SERVICE","16.95","Court Team","4131","Section 17","15/03/2019"
"Wolverhampton City Council","http://opendatacommunities.org/id/metropolitan-district-council/wolverhampton","NATWEST BANK","200.00","Court Team","6011","Section 17","15/03/2019"
"Wolverhampton City Council","http://opendatacommunities.org/id/metropolitan-district-council/wolverhampton","NATWEST BANK","200.00","CAT","6011","Section 17","15/03/2019"
"Wolverhampton City Council","http://opendatacommunities.org/id/metropolitan-district-council/wolverhampton","WWW.IKEA.COM","407.50","Court Team","5712","Section 17","15/03/2019"
"Wolverhampton City Council","http://opendatacommunities.org/id/metropolitan-district-council/wolverhampton","Amazon.co.uk MW7HY8BC4","20.38","Key to Inspiration","5969","First Aid Requisites","14/03/2019"
"Wolverhampton City Council","http://opendatacommunities.org/id/metropolitan-district-council/wolverhampton","AMZN Mktp UK MW9HV3BK4","13.31","Key to Inspiration","5942","Fixtures and Fittings - Purchases","14/03/2019"
"Wolverhampton City Council","http://opendatacommunities.org/id/metropolitan-district-council/wolverhampton","Trainline","78.55","Corporate Procurement Unit","4112","Public Transport","14/03/2019"
"Wolverhampton City Council","http://opendatacommunities.org/id/metropolitan-district-council/wolverhampton","ASDA GROCERIES ONLINE","77.68","Bradley Resource Centre","5411","Provisions (Not for resale)","14/03/2019"
"Wolverhampton City Council","http://opendatacommunities.org/id/metropolitan-district-council/wolverhampton","WWW.WMCA.CO.UK","56.50","IMPACT","9399","Services - Fees and Charges","14/03/2019"
"Wolverhampton City Council","http://opendatacommunities.org/id/metropolitan-district-council/wolverhampton","WWW.WMCA.CO.UK","6.90","IMPACT","9399","Services - Fees and Charges","14/03/2019"
"Wolverhampton City Council","http://opendatacommunities.org/id/metropolitan-district-council/wolverhampton","Trainline","-69.35","Strategic Financial Services","4112","Public Transport","14/03/2019"
"Wolverhampton City Council","http://opendatacommunities.org/id/metropolitan-district-council/wolverhampton","Trainline","82.26","Strategic Financial Services","4112","Public Transport","14/03/2019"
"Wolverhampton City Council","http://opendatacommunities.org/id/metropolitan-district-council/wolverhampton","Trainline","82.26","Strategic Financial Services","4112","Public Transport","14/03/2019"
"Wolverhampton City Council","http://opendatacommunities.org/id/metropolitan-district-council/wolverhampton","Trainline","20.15","Strategic Financial Services","4112","Public Transport","14/03/2019"
"Wolverhampton City Council","http://opendatacommunities.org/id/metropolitan-district-council/wolverhampton","HOME BARGAINS","25.80","Bradley Resource Centre","5251","Equipment - Purchase","14/03/2019"
"Wolverhampton City Council","http://opendatacommunities.org/id/metropolitan-district-council/wolverhampton","TESCO STORES 5194","42.60","Towers Outdoor Education Centre","5411","Provisions (Not for resale)","14/03/2019"
"Wolverhampton City Council","http://opendatacommunities.org/id/metropolitan-district-council/wolverhampton","TESCO STORES 5194","-8.10","Towers Outdoor Education Centre","5411","Provisions (Not for resale)","14/03/2019"
"Wolverhampton City Council","http://opendatacommunities.org/id/metropolitan-district-council/wolverhampton","SPAR SIOP TANDDERWEN","222.80","Towers Outdoor Education Centre","5411","Provisions (Not for resale)","14/03/2019"
"Wolverhampton City Council","http://opendatacommunities.org/id/metropolitan-district-council/wolverhampton","AMZN Mktp UK MW7C16B24","9.99","Towers Outdoor Education Centre","5942","Equipment - Purchase","14/03/2019"
"Wolverhampton City Council","http://opendatacommunities.org/id/metropolitan-district-council/wolverhampton","AMZN Mktp UK MW5M25BG4","68.93","Towers Outdoor Education Centre","5942","Equipment - Purchase","14/03/2019"
"Wolverhampton City Council","http://opendatacommunities.org/id/metropolitan-district-council/wolverhampton","AMZN Mktp UK MW1W55BZ4","45.40","Towers Outdoor Education Centre","5942","Equipment - Purchase","14/03/2019"
"Wolverhampton City Council","http://opendatacommunities.org/id/metropolitan-district-council/wolverhampton","AMZN Mktp UK MW0G94BZ4","15.90","Towers Outdoor Education Centre","5942","Fixtures and Fittings - Purchases","14/03/2019"
"Wolverhampton City Council","http://opendatacommunities.org/id/metropolitan-district-council/wolverhampton","KFC WOLVERHAMPTON","16.37","B-Safe","5814","Subsistence","14/03/2019"
"Wolverhampton City Council","http://opendatacommunities.org/id/metropolitan-district-council/wolverhampton","AMZN Mktp UK MW4VY3HP4","6.30","Business Support Services","5942","Books","14/03/2019"
"Wolverhampton City Council","http://opendatacommunities.org/id/metropolitan-district-council/wolverhampton","POST OFFICE COUNTER","7.30","LAC Team","9402","Comms - Postage","14/03/2019"
"Wolverhampton City Council","http://opendatacommunities.org/id/metropolitan-district-council/wolverhampton","AMZN Mktp UK MW24S0HF4","131.20","Strategic ICTS (ICT Serv Budget)","5942","Computing - Purchase of Hardware","14/03/2019"
"Wolverhampton City Council","http://opendatacommunities.org/id/metropolitan-district-council/wolverhampton","PREMIER INN","332.04","Culwell Street Depot","3811","Accommodation Costs","14/03/2019"
"Wolverhampton City Council","http://opendatacommunities.org/id/metropolitan-district-council/wolverhampton","ASDA GROCERIES ONLINE","48.40","Upper Pendeford Farm Childrens Home","5411","Cleaning Supplies and Materials","14/03/2019"
"Wolverhampton City Council","http://opendatacommunities.org/id/metropolitan-district-council/wolverhampton","Virgin Trains","36.90","LAC Team","4112","Client Transport","14/03/2019"
"Wolverhampton City Council","http://opendatacommunities.org/id/metropolitan-district-council/wolverhampton","Virgin Trains","69.70","LAC Team","4112","Public Transport","14/03/2019"
"Wolverhampton City Council","http://opendatacommunities.org/id/metropolitan-district-council/wolverhampton","HM PASSPORT OFFICE","58.50","LAC Team","9399","Financial Assistance In Exceptional Circ","14/03/2019"
"Wolverhampton City Council","http://opendatacommunities.org/id/metropolitan-district-council/wolverhampton","GEN REGISTER OFFICE","28.00","LAC Team","9399","Services - Fees and Charges","14/03/2019"
"Wolverhampton City Council","http://opendatacommunities.org/id/metropolitan-district-council/wolverhampton","Trainline","9.41","Children & Young People Support Costs","4112","Public Transport","14/03/2019"
"Wolverhampton City Council","http://opendatacommunities.org/id/metropolitan-district-council/wolverhampton","TILING SUPPLIES DIRECT","29.10","Creative Studies Delivery Area","5072","Equipment - Purchase","14/03/2019"
"Wolverhampton City Council","http://opendatacommunities.org/id/metropolitan-district-council/wolverhampton","AMZN Mktp UK MW0V17HZ4","111.65","LAC Transitions Team","5942","Client Allowances","14/03/2019"
"Wolverhampton City Council","http://opendatacommunities.org/id/metropolitan-district-council/wolverhampton","JOHNSTONES DEC CENTRE","12.95","Culwell Street Depot","5231","Materials","14/03/2019"
"Wolverhampton City Council","http://opendatacommunities.org/id/metropolitan-district-council/wolverhampton","CARVER/WOLVERHAMPTON/L","36.10","Culwell Street Depot","5211","Materials","14/03/2019"
"Wolverhampton City Council","http://opendatacommunities.org/id/metropolitan-district-council/wolverhampton","CUMMINGS BROTHERS LOCK","4.17","Learning Disabilities Management","7399","Equipment - R & M","14/03/2019"
"Wolverhampton City Council","http://opendatacommunities.org/id/metropolitan-district-council/wolverhampton","ASDA SUPERSTORE","146.05","Upper Pendeford Farm Childrens Home","5411","Provisions (Not for resale)","14/03/2019"
"Wolverhampton City Council","http://opendatacommunities.org/id/metropolitan-district-council/wolverhampton","WIX.COM","93.13","Technical Support","5968","Subscriptions","14/03/2019"
"Wolverhampton City Council","http://opendatacommunities.org/id/metropolitan-district-council/wolverhampton","Trainline","21.11","Head of Service - CINCP","4112","Public Transport","14/03/2019"
"Wolverhampton City Council","http://opendatacommunities.org/id/metropolitan-district-council/wolverhampton","eSky.pl S.A.","138.86","Youth Offending Team","4722","Public Transport","14/03/2019"
"Wolverhampton City Council","http://opendatacommunities.org/id/metropolitan-district-council/wolverhampton","Virgin Trains","105.40","Food & Consumer Safety","4112","Services - Fees and Charges","14/03/2019"
"Wolverhampton City Council","http://opendatacommunities.org/id/metropolitan-district-council/wolverhampton","Virgin Trains","20.30","Trading Standards","4112","Services - Fees and Charges","14/03/2019"
"Wolverhampton City Council","http://opendatacommunities.org/id/metropolitan-district-council/wolverhampton","J VAN VLIET BIRMINGHAM","64.24","Creative Studies Delivery Area","5399","Materials","14/03/2019"
"Wolverhampton City Council","http://opendatacommunities.org/id/metropolitan-district-council/wolverhampton","J VAN VLIET BIRMINGHAM","143.35","Creative Studies Delivery Area","5399","Materials for resale","14/03/2019"
"Wolverhampton City Council","http://opendatacommunities.org/id/metropolitan-district-council/wolverhampton","TIMPSON AT MORRISONS","23.00","Community Enablement","7251","Fixtures and Fittings - R&M","14/03/2019"
"Wolverhampton City Council","http://opendatacommunities.org/id/metropolitan-district-council/wolverhampton","Cross Country Trains","28.42","Box Office Administration","4112","Public Transport","13/03/2019"
"Wolverhampton City Council","http://opendatacommunities.org/id/metropolitan-district-council/wolverhampton","WM MORRISON FOOD.COM","82.85","Discretionary Fund","5411","Materials","13/03/2019"
"Wolverhampton City Council","http://opendatacommunities.org/id/metropolitan-district-council/wolverhampton","SAINSBURYS LOCAL (4357","7.65","Adult Services - West","5411","Provisions (Not for resale)","13/03/2019"
"Wolverhampton City Council","http://opendatacommunities.org/id/metropolitan-district-council/wolverhampton","NATWEST BANK","200.00","CAT","6011","No Recourse to Public Funds","13/03/2019"
"Wolverhampton City Council","http://opendatacommunities.org/id/metropolitan-district-council/wolverhampton","Hotel on Booking.com","45.75","Safeguarding Admin Resource","7011","Services - Supplies & Services to users","13/03/2019"
"Wolverhampton City Council","http://opendatacommunities.org/id/metropolitan-district-council/wolverhampton","WWW.ARGOS.CO.UK","86.93","Adoption and Residence Team & Allowances","5310","Equipment - Purchase","13/03/2019"
"Wolverhampton City Council","http://opendatacommunities.org/id/metropolitan-district-council/wolverhampton","TESCO STORES 5194","134.90","Towers Outdoor Education Centre","5411","Provisions (Not for resale)","13/03/2019"
"Wolverhampton City Council","http://opendatacommunities.org/id/metropolitan-district-council/wolverhampton","BCC REGISTER OFFIC","13.50","CIN/CP Social Work Unit - Area 6","9399","Section 17","13/03/2019"
"Wolverhampton City Council","http://opendatacommunities.org/id/metropolitan-district-council/wolverhampton","AMZN Mktp UK MW51835Y4","5.67","Communications & Marketing - General","5942","Books","13/03/2019"
"Wolverhampton City Council","http://opendatacommunities.org/id/metropolitan-district-council/wolverhampton","WWW.MANCHESTER.GOV.UK","11.00","CIN/CP Social Work Unit - Area 6","7523","Section 17","13/03/2019"
"Wolverhampton City Council","http://opendatacommunities.org/id/metropolitan-district-council/wolverhampton","AMZN Mktp UK MW7SN4544","20.89","Communications & Marketing - General","5942","Books","13/03/2019"
"Wolverhampton City Council","http://opendatacommunities.org/id/metropolitan-district-council/wolverhampton","SMART KID STORE","187.24","LAC Transitions Team","5641","Client Allowances","13/03/2019"
"Wolverhampton City Council","http://opendatacommunities.org/id/metropolitan-district-council/wolverhampton","AMZN Mktp UK MW0PZ8514","15.82","LAC Transitions Team","5942","Client Allowances","13/03/2019"
"Wolverhampton City Council","http://opendatacommunities.org/id/metropolitan-district-council/wolverhampton","Virgin Trains","90.60","Strategic Asset Management - General","4112","Public Transport","13/03/2019"
"Wolverhampton City Council","http://opendatacommunities.org/id/metropolitan-district-council/wolverhampton","AO RETAIL LIMITED","99.00","Shopmobility","5722","Equipment - Purchase","13/03/2019"
"Wolverhampton City Council","http://opendatacommunities.org/id/metropolitan-district-council/wolverhampton","AO RETAIL LIMITED","119.00","Wolverhampton Indoor and Open Market","5722","Equipment - Purchase","13/03/2019"
"Wolverhampton City Council","http://opendatacommunities.org/id/metropolitan-district-council/wolverhampton","ROOKERY  Sainsburys B","100.00","Duke Street Bungalows","6011","Provisions (Not for resale)","13/03/2019"
"Wolverhampton City Council","http://opendatacommunities.org/id/metropolitan-district-council/wolverhampton","ARGOS LTD","35.00","Duke Street Bungalows","5310","R4010","13/03/2019"
"Wolverhampton City Council","http://opendatacommunities.org/id/metropolitan-district-council/wolverhampton","AMZN Mktp UK MW6YB5HS4","21.65","Blakenhall Commty & Healthy Living Ctr","5942","Equipment - Purchase","13/03/2019"
"Wolverhampton City Council","http://opendatacommunities.org/id/metropolitan-district-council/wolverhampton","Virgin Trains","52.00","City Centre","4112","Services - Fees and Charges","13/03/2019"
"Wolverhampton City Council","http://opendatacommunities.org/id/metropolitan-district-council/wolverhampton","ENJOY WOLVERHAMPTON","100.00","Environmental Crime and Consumer Protect","5399","Equipment - Purchase","13/03/2019"
"Wolverhampton City Council","http://opendatacommunities.org/id/metropolitan-district-council/wolverhampton","YOUR-MOVE.CO.UK LT","1,082.00","CIN/CP Social Work Unit - Area 5","6513","Section 17","13/03/2019"
"Wolverhampton City Council","http://opendatacommunities.org/id/metropolitan-district-council/wolverhampton","WWW.MEMBERS.LANDSCAPEI","278.00","Landscape","8398","Subscriptions","13/03/2019"
"Wolverhampton City Council","http://opendatacommunities.org/id/metropolitan-district-council/wolverhampton","Trainline","36.12","LAC Transitions Team","4112","Public Transport","13/03/2019"
"Wolverhampton City Council","http://opendatacommunities.org/id/metropolitan-district-council/wolverhampton","Trainline","195.56","Assistant Director - Public Health","4112","Public Transport","13/03/2019"
"Wolverhampton City Council","http://opendatacommunities.org/id/metropolitan-district-council/wolverhampton","Virgin Trains","16.40","Strategic Financial Services","4112","Public Transport","13/03/2019"
"Wolverhampton City Council","http://opendatacommunities.org/id/metropolitan-district-council/wolverhampton","WILKO RETAIL LIMIT","16.00","Business Support Services","5722","Equipment - Purchase","13/03/2019"
"Wolverhampton City Council","http://opendatacommunities.org/id/metropolitan-district-council/wolverhampton","WWW.ARGOS.CO.UK","228.28","LAC Transitions Team","5310","Client Allowances","13/03/2019"
"Wolverhampton City Council","http://opendatacommunities.org/id/metropolitan-district-council/wolverhampton","ARGOS WOLVERHAMPTO","233.55","LAC Transitions Team","5310","Client Allowances","13/03/2019"
"Wolverhampton City Council","http://opendatacommunities.org/id/metropolitan-district-council/wolverhampton","SAINSBURYS (2340)","55.50","LAC Transitions Team","5411","Client Allowances","13/03/2019"
"Wolverhampton City Council","http://opendatacommunities.org/id/metropolitan-district-council/wolverhampton","ASDA GEORGE COM LEEDS","17.50","LAC Transitions Team","5411","Client Allowances","13/03/2019"
"Wolverhampton City Council","http://opendatacommunities.org/id/metropolitan-district-council/wolverhampton","ASDA GROCERIES ONLINE","-4.00","-","5411","Provisions (Not for resale)","12/03/2019"
"Wolverhampton City Council","http://opendatacommunities.org/id/metropolitan-district-council/wolverhampton","ASDA GROCERIES ONLINE","109.08","Bradley Resource Centre","5411","Provisions (Not for resale)","12/03/2019"
"Wolverhampton City Council","http://opendatacommunities.org/id/metropolitan-district-council/wolverhampton","BLS SHAREGATE188844431","3,102.97","Strategic ICTS (ICT Serv Budget)","7372","Computing - Purchase of Software","12/03/2019"
"Wolverhampton City Council","http://opendatacommunities.org/id/metropolitan-district-council/wolverhampton","AMZN MKTP UK MW3NX4MV4","91.60","Document Centre - General","5942","Materials","12/03/2019"
"Wolverhampton City Council","http://opendatacommunities.org/id/metropolitan-district-council/wolverhampton","Amazon.co.uk MW4JQ4V44","19.51","Document Centre - General","5969","Equipment - Purchase","12/03/2019"
"Wolverhampton City Council","http://opendatacommunities.org/id/metropolitan-district-council/wolverhampton","WEST MID TRAVEL","436.90","IMPACT","4131","Public Transport","12/03/2019"
"Wolverhampton City Council","http://opendatacommunities.org/id/metropolitan-district-council/wolverhampton","West Midlands Rail","32.90","Street Lighting Maintenance","4112","Public Transport","12/03/2019"
"Wolverhampton City Council","http://opendatacommunities.org/id/metropolitan-district-council/wolverhampton","TESCO STORES 6727","2.00","Youth Offending Team","5411","Provisions (Not for resale)","12/03/2019"
"Wolverhampton City Council","http://opendatacommunities.org/id/metropolitan-district-council/wolverhampton","NATWEST BANK","200.00","CAT","6011","No Recourse to Public Funds","12/03/2019"
"Wolverhampton City Council","http://opendatacommunities.org/id/metropolitan-district-council/wolverhampton","Virgin Trains","10.00","Fostering Team & Allowances","4112","Public Transport","12/03/2019"
"Wolverhampton City Council","http://opendatacommunities.org/id/metropolitan-district-council/wolverhampton","TESCO DELIVERY SAVER2","3.49","Towers Outdoor Education Centre","5968","Provisions (Not for resale)","12/03/2019"
"Wolverhampton City Council","http://opendatacommunities.org/id/metropolitan-district-council/wolverhampton","AMZN Mktp UK MW4S435X4","14.48","Communications & Marketing - General","5942","Books","12/03/2019"
"Wolverhampton City Council","http://opendatacommunities.org/id/metropolitan-district-council/wolverhampton","AMZN Mktp UK MW50B5VC4","12.46","Communications & Marketing - General","5942","Books","12/03/2019"
"Wolverhampton City Council","http://opendatacommunities.org/id/metropolitan-district-council/wolverhampton","SAINSBURYS PFS (1340)","1.67","Mayoral Expenses","5541","Vehicle Maintenance - Repairs","12/03/2019"
"Wolverhampton City Council","http://opendatacommunities.org/id/metropolitan-district-council/wolverhampton","WOLVERHAMPTON T/O","46.00","Business Support Services","4112","Public Transport","12/03/2019"
"Wolverhampton City Council","http://opendatacommunities.org/id/metropolitan-district-council/wolverhampton","123 REG R/T","-143.76","City Direct","5968","Subscriptions","12/03/2019"
"Wolverhampton City Council","http://opendatacommunities.org/id/metropolitan-district-council/wolverhampton","Trainline","12.46","LAC Transitions Team","4112","Client Allowances","12/03/2019"
"Wolverhampton City Council","http://opendatacommunities.org/id/metropolitan-district-council/wolverhampton","ROYAL CARPETS","150.00","LAC Transitions Team","5713","Client Allowances","12/03/2019"
"Wolverhampton City Council","http://opendatacommunities.org/id/metropolitan-district-council/wolverhampton","Virgin Trains","363.20","Audit Services","4112","Public Transport","12/03/2019"
"Wolverhampton City Council","http://opendatacommunities.org/id/metropolitan-district-council/wolverhampton","Euroflorist AB","25.49","Upper Pendeford Farm Childrens Home","5992","Provisions (Not for resale)","12/03/2019"
"Wolverhampton City Council","http://opendatacommunities.org/id/metropolitan-district-council/wolverhampton","WILTSHIRE COUNTY C","11.00","LAC Team","9399","Financial Assistance In Exceptional Circ","12/03/2019"
"Wolverhampton City Council","http://opendatacommunities.org/id/metropolitan-district-council/wolverhampton","Virgin Trains","111.10","LAC Team","4112","Client Transport","12/03/2019"
"Wolverhampton City Council","http://opendatacommunities.org/id/metropolitan-district-council/wolverhampton","Virgin Trains","94.45","LAC Team","4112","Client Transport","12/03/2019"
"Wolverhampton City Council","http://opendatacommunities.org/id/metropolitan-district-council/wolverhampton","2CO.com rsjoomla.com","57.09","ICT Services","5734","Computing - Purchase of Software","12/03/2019"
"Wolverhampton City Council","http://opendatacommunities.org/id/metropolitan-district-council/wolverhampton","AMZ Connevans Ltd","25.46","MASH","4816","Equipment - Purchase","12/03/2019"
"Wolverhampton City Council","http://opendatacommunities.org/id/metropolitan-district-council/wolverhampton","SAINSBURYS SACAT 2040","10.25","Duke Street Bungalows","5411","R4010","12/03/2019"
"Wolverhampton City Council","http://opendatacommunities.org/id/metropolitan-district-council/wolverhampton","Cross Country Trains","9.30","Head of Strategic Commissioning � People","4112","Public Transport","12/03/2019"
"Wolverhampton City Council","http://opendatacommunities.org/id/metropolitan-district-council/wolverhampton","Cross Country Trains","8.00","Head of Strategic Commissioning � People","4112","Public Transport","12/03/2019"
"Wolverhampton City Council","http://opendatacommunities.org/id/metropolitan-district-council/wolverhampton","FACEBK G7SFDKW6C2","16.00","Education And Access","7311","Marketing \ Non-staff advertising","12/03/2019"
"Wolverhampton City Council","http://opendatacommunities.org/id/metropolitan-district-council/wolverhampton","CITY OF WOLVERHAMPTON","16.00","LAC Team","9399","Financial Assistance In Exceptional Circ","12/03/2019"
"Wolverhampton City Council","http://opendatacommunities.org/id/metropolitan-district-council/wolverhampton","ASDA GROCERIES ONLINE","55.93","Ernest Bold Court","5411","Provisions (Not for resale)","12/03/2019"
"Wolverhampton City Council","http://opendatacommunities.org/id/metropolitan-district-council/wolverhampton","J VAN VLIET BIRMINGHAM","52.95","Creative Studies Delivery Area","5399","Materials","12/03/2019"
"Wolverhampton City Council","http://opendatacommunities.org/id/metropolitan-district-council/wolverhampton","ALBRIGHTON FEEDS LIMIT","102.30","Parks - Ranger Service","5995","Materials","12/03/2019"
"Wolverhampton City Council","http://opendatacommunities.org/id/metropolitan-district-council/wolverhampton","RAGLAN STREET ST MARK","70.00","Duke Street Bungalows","6011","Equipment - R & M","12/03/2019"
"Wolverhampton City Council","http://opendatacommunities.org/id/metropolitan-district-council/wolverhampton","CURRYS S/S","33.32","Adult Services - East","5732","Equipment - Purchase","12/03/2019"
"Wolverhampton City Council","http://opendatacommunities.org/id/metropolitan-district-council/wolverhampton","ASDA STORE 4753","13.28","Bradley Resource Centre","5411","Provisions (Not for resale)","11/03/2019"
"Wolverhampton City Council","http://opendatacommunities.org/id/metropolitan-district-council/wolverhampton","Amazon.co.uk MW58N0XE4","19.51","Document Centre - General","5969","Equipment - Purchase","11/03/2019"
"Wolverhampton City Council","http://opendatacommunities.org/id/metropolitan-district-council/wolverhampton","Amazon.co.uk MW5SK9XU4","19.51","Document Centre - General","5969","Equipment - Purchase","11/03/2019"
"Wolverhampton City Council","http://opendatacommunities.org/id/metropolitan-district-council/wolverhampton","Amazon.co.uk MW1992X14","36.08","Document Centre - General","5969","Equipment - Purchase","11/03/2019"
"Wolverhampton City Council","http://opendatacommunities.org/id/metropolitan-district-council/wolverhampton","D E S LTD","1,109.50","Document Centre - General","8911","Materials","11/03/2019"
"Wolverhampton City Council","http://opendatacommunities.org/id/metropolitan-district-council/wolverhampton","BEATSABAR MUSIC PROJEC","168.05","Youth Offending Team","5733","Equipment - Purchase","11/03/2019"
"Wolverhampton City Council","http://opendatacommunities.org/id/metropolitan-district-council/wolverhampton","BEATSABAR MUSIC PROJEC","168.05","Youth Offending Team","5733","Equipment - Purchase","11/03/2019"
"Wolverhampton City Council","http://opendatacommunities.org/id/metropolitan-district-council/wolverhampton","AMZN Mktp UK MW3BQ0GN4","23.99","EIP Locality 3","5942","Stationery","11/03/2019"
"Wolverhampton City Council","http://opendatacommunities.org/id/metropolitan-district-council/wolverhampton","000002200500000","140.00","Childrens with Disabilities Team","6011","Financial Assistance In Exceptional Circ","11/03/2019"
"Wolverhampton City Council","http://opendatacommunities.org/id/metropolitan-district-council/wolverhampton","WWW.ARGOS.CO.UK","129.99","Adoption and Residence Team & Allowances","5310","Equipment - Purchase","11/03/2019"
"Wolverhampton City Council","http://opendatacommunities.org/id/metropolitan-district-council/wolverhampton","WWW.ARGOS.CO.UK","441.94","Adoption and Residence Team & Allowances","5310","Equipment - Purchase","11/03/2019"
"Wolverhampton City Council","http://opendatacommunities.org/id/metropolitan-district-council/wolverhampton","WWW.ICELAND.CO.UK","96.52","Bradley Resource Centre","5411","Provisions (Not for resale)","11/03/2019"
"Wolverhampton City Council","http://opendatacommunities.org/id/metropolitan-district-council/wolverhampton","WWW.IKEA.COM","486.67","LAC Transitions Team","5712","Equipment - Purchase","11/03/2019"
"Wolverhampton City Council","http://opendatacommunities.org/id/metropolitan-district-council/wolverhampton","GOOGLE  ADS9680351324","500.00","Communications & Marketing - General","5968","Subscriptions","11/03/2019"
"Wolverhampton City Council","http://opendatacommunities.org/id/metropolitan-district-council/wolverhampton","PO BLAKENHALL 2299","100.00","Headstart Phase 3","6011","Financial Assistance In Exceptional Circ","11/03/2019"
"Wolverhampton City Council","http://opendatacommunities.org/id/metropolitan-district-council/wolverhampton","Trainline","44.26","Work Box","4112","Public Transport","11/03/2019"
"Wolverhampton City Council","http://opendatacommunities.org/id/metropolitan-district-council/wolverhampton","WESTMINSTER INSIGHT","280.80","Work Box","8299","Training Expenses","11/03/2019"
"Wolverhampton City Council","http://opendatacommunities.org/id/metropolitan-district-council/wolverhampton","RESPONSTER PLUS PLAN","15.04","City Direct","5734","Computing - Purchase of Software","11/03/2019"
"Wolverhampton City Council","http://opendatacommunities.org/id/metropolitan-district-council/wolverhampton","ASDA GROCERIES ONLINE","5.00","Upper Pendeford Farm Childrens Home","5411","Provisions (Not for resale)","11/03/2019"
"Wolverhampton City Council","http://opendatacommunities.org/id/metropolitan-district-council/wolverhampton","AMZN Mktp UK MW9E59XF4","43.11","Creative Studies Delivery Area","5942","Equipment - Purchase","11/03/2019"
"Wolverhampton City Council","http://opendatacommunities.org/id/metropolitan-district-council/wolverhampton","AMZN Mktp UK MW8GB9GO4","13.24","Creative Studies Delivery Area","5942","Equipment - Purchase","11/03/2019"
"Wolverhampton City Council","http://opendatacommunities.org/id/metropolitan-district-council/wolverhampton","AMZN Mktp UK MW99D3GI4","24.90","Creative Studies Delivery Area","5942","Equipment - Purchase","11/03/2019"
"Wolverhampton City Council","http://opendatacommunities.org/id/metropolitan-district-council/wolverhampton","Amazon Prime MW71R5GW4","6.66","Blakenhall Commty & Healthy Living Ctr","5968","Subscriptions","11/03/2019"
"Wolverhampton City Council","http://opendatacommunities.org/id/metropolitan-district-council/wolverhampton","WIX.COM","186.26","Technical Support","5817","Computing - Purchase of Software","11/03/2019"
"Wolverhampton City Council","http://opendatacommunities.org/id/metropolitan-district-council/wolverhampton","B & Q 1243","10.78","Specialist Support Service - North","5211","Equipment - R & M","11/03/2019"
"Wolverhampton City Council","http://opendatacommunities.org/id/metropolitan-district-council/wolverhampton","ASDA GROCERIES ONLINE","50.30","Ernest Bold Court","5411","Provisions (Not for resale)","11/03/2019"
"Wolverhampton City Council","http://opendatacommunities.org/id/metropolitan-district-council/wolverhampton","HERON FOODS LTD","20.42","Ernest Bold Court","5499","Provisions (Not for resale)","11/03/2019"
"Wolverhampton City Council","http://opendatacommunities.org/id/metropolitan-district-council/wolverhampton","PREMIER INN","63.50","Members Expenses","3811","Accommodation Costs","11/03/2019"
"Wolverhampton City Council","http://opendatacommunities.org/id/metropolitan-district-council/wolverhampton","Virgin Trains","58.05","Members Expenses","4112","Public Transport","11/03/2019"
"Wolverhampton City Council","http://opendatacommunities.org/id/metropolitan-district-council/wolverhampton","WWW.WMCA.CO.UK","44.00","CAT","9399","Section 17","11/03/2019"
"Wolverhampton City Council","http://opendatacommunities.org/id/metropolitan-district-council/wolverhampton","QSP LTD","263.99","Central Training","8299","Training Expenses","11/03/2019"
"Wolverhampton City Council","http://opendatacommunities.org/id/metropolitan-district-council/wolverhampton","CITY OF WOLVERHAMPTON","75.00","Head of Service - CINCP","9399","Services - Professional Fees","11/03/2019"
"Wolverhampton City Council","http://opendatacommunities.org/id/metropolitan-district-council/wolverhampton","AMZN Mktp UK MW1V46VY4","16.90","Children & Family Contact Services","5942","Equipment - Purchase","11/03/2019"
"Wolverhampton City Council","http://opendatacommunities.org/id/metropolitan-district-council/wolverhampton","AMZN Mktp UK MW2UB9PT4","8.29","Children & Family Contact Services","5942","Equipment - Purchase","11/03/2019"
"Wolverhampton City Council","http://opendatacommunities.org/id/metropolitan-district-council/wolverhampton","CITY OF WOLVERHAMPTON","16.00","Head of Service - CINCP","9399","Services - Professional Fees","11/03/2019"
"Wolverhampton City Council","http://opendatacommunities.org/id/metropolitan-district-council/wolverhampton","ASDA SUPERSTORE","9.40","Key to Inspiration","5411","Equipment - Purchase","08/03/2019"
"Wolverhampton City Council","http://opendatacommunities.org/id/metropolitan-district-council/wolverhampton","HOME BARGAINS WOLVERHA","4.65","Key to Inspiration","5251","Equipment - Purchase","08/03/2019"
"Wolverhampton City Council","http://opendatacommunities.org/id/metropolitan-district-council/wolverhampton","000002200500000","100.00","Childrens with Disabilities Team","6011","Financial Assistance In Exceptional Circ","08/03/2019"
"Wolverhampton City Council","http://opendatacommunities.org/id/metropolitan-district-council/wolverhampton","000002200500000","250.00","Childrens with Disabilities Team","6011","Financial Assistance In Exceptional Circ","08/03/2019"
"Wolverhampton City Council","http://opendatacommunities.org/id/metropolitan-district-council/wolverhampton","POST OFFICE COUNTER","7.30","Adoption and Residence Team & Allowances","9402","Comms - Postage","08/03/2019"
"Wolverhampton City Council","http://opendatacommunities.org/id/metropolitan-district-council/wolverhampton","ASDA SUPERSTORE","7.90","Mayoral Expenses","5411","Hospitality","08/03/2019"
"Wolverhampton City Council","http://opendatacommunities.org/id/metropolitan-district-council/wolverhampton","Amazon Prime","-65.83","LAC Education Team (LACE)","5968","Subscriptions","08/03/2019"
"Wolverhampton City Council","http://opendatacommunities.org/id/metropolitan-district-council/wolverhampton","AMZN Mktp UK MW8E68074","10.79","LAC Education Team (LACE)","5942","Books","08/03/2019"
"Wolverhampton City Council","http://opendatacommunities.org/id/metropolitan-district-council/wolverhampton","WP-CENTRAL TAXIS L","62.40","LAC Education Team (LACE)","4121","Client Transport","08/03/2019"
"Wolverhampton City Council","http://opendatacommunities.org/id/metropolitan-district-council/wolverhampton","Trainline","58.00","LAC Transitions Team","4112","Public Transport","08/03/2019"
"Wolverhampton City Council","http://opendatacommunities.org/id/metropolitan-district-council/wolverhampton","EXPEDIA 7417560339925","20.01","LAC Transitions Team","4722","Accommodation Costs","08/03/2019"
"Wolverhampton City Council","http://opendatacommunities.org/id/metropolitan-district-council/wolverhampton","EXPEDIA 7417560339925","48.99","LAC Transitions Team","4722","Accommodation Costs","08/03/2019"
"Wolverhampton City Council","http://opendatacommunities.org/id/metropolitan-district-council/wolverhampton","TOOLSTATION LTD","20.77","Public Conveniences","5251","R&M - Departmental planned (external)","08/03/2019"
"Wolverhampton City Council","http://opendatacommunities.org/id/metropolitan-district-council/wolverhampton","AMZN Mktp UK MW50P91E4","17.47","Strategic ICTS (ICT Serv Budget)","5942","Equipment - Purchase","08/03/2019"
"Wolverhampton City Council","http://opendatacommunities.org/id/metropolitan-district-council/wolverhampton","ITUNES.COM/BILL",".79","Strategic ICTS (ICT Serv Budget)","5735","Computing - Purchase of Software","08/03/2019"
"Wolverhampton City Council","http://opendatacommunities.org/id/metropolitan-district-council/wolverhampton","WP-CENTRAL TAXIS L","130.00","LAC Team","4121","Client Transport","08/03/2019"
"Wolverhampton City Council","http://opendatacommunities.org/id/metropolitan-district-council/wolverhampton","Amazon.co.uk MW95P5PA4","135.20","Creative Studies Delivery Area","5969","Books","08/03/2019"
"Wolverhampton City Council","http://opendatacommunities.org/id/metropolitan-district-council/wolverhampton","VIKING UK","69.99","Archives","5111","Stationery","08/03/2019"
"Wolverhampton City Council","http://opendatacommunities.org/id/metropolitan-district-council/wolverhampton","WEST MID TRAVEL","446.90","Community Enablement","4131","Public Transport","08/03/2019"
"Wolverhampton City Council","http://opendatacommunities.org/id/metropolitan-district-council/wolverhampton","B & Q 1243","11.25","Learning Disabilities Management","5211","Equipment - R & M","08/03/2019"
"Wolverhampton City Council","http://opendatacommunities.org/id/metropolitan-district-council/wolverhampton","WP-CENTRAL TAXIS L","-17.60","LAC Team","4121","Client Transport","08/03/2019"
"Wolverhampton City Council","http://opendatacommunities.org/id/metropolitan-district-council/wolverhampton","WP-CENTRAL TAXIS L","154.80","LAC Team","4121","Client Transport","08/03/2019"
"Wolverhampton City Council","http://opendatacommunities.org/id/metropolitan-district-council/wolverhampton","Amazon.co.uk MW5XI6164","156.13","Private Hire Vehicles","5969","Equipment - Purchase","08/03/2019"
"Wolverhampton City Council","http://opendatacommunities.org/id/metropolitan-district-council/wolverhampton","Cross Country Trains","108.80","Court Team","4112","Section 17","08/03/2019"
"Wolverhampton City Council","http://opendatacommunities.org/id/metropolitan-district-council/wolverhampton","Cross Country Trains","4.90","Court Team","4112","Section 17","08/03/2019"
"Wolverhampton City Council","http://opendatacommunities.org/id/metropolitan-district-council/wolverhampton","STAGECOACH SERVICE","16.95","Court Team","4131","Section 17","08/03/2019"
"Wolverhampton City Council","http://opendatacommunities.org/id/metropolitan-district-council/wolverhampton","SEVERN TRENT WATER","37.02","LAC Transitions Team","4900","Client Allowances","08/03/2019"
"Wolverhampton City Council","http://opendatacommunities.org/id/metropolitan-district-council/wolverhampton","WWW.WOLVERHAMPTON.GOV.","82.79","LAC Transitions Team","9399","Client Allowances","08/03/2019"
"Wolverhampton City Council","http://opendatacommunities.org/id/metropolitan-district-council/wolverhampton","HUGHES","147.36","LAC Transitions Team","5732","Client Allowances","08/03/2019"
"Wolverhampton City Council","http://opendatacommunities.org/id/metropolitan-district-council/wolverhampton","SAINSBURYS SACAT (2340","22.35","Civic Centre Catering","5411","Provisions (Not for resale)","08/03/2019"
"Wolverhampton City Council","http://opendatacommunities.org/id/metropolitan-district-council/wolverhampton","AMZN Mktp UK MW2EL01E4","16.57","Children & Family Contact Services","5942","Equipment - Purchase","08/03/2019"
"Wolverhampton City Council","http://opendatacommunities.org/id/metropolitan-district-council/wolverhampton","AMZN Mktp UK MW8KU61E4","12.16","Children & Family Contact Services","5942","Equipment - Purchase","08/03/2019"
"Wolverhampton City Council","http://opendatacommunities.org/id/metropolitan-district-council/wolverhampton","AMZN Mktp UK MW3RY0044","140.00","Children & Family Contact Services","5942","Equipment - Purchase","08/03/2019"
"Wolverhampton City Council","http://opendatacommunities.org/id/metropolitan-district-council/wolverhampton","AMZN Mktp UK MW1746144","28.21","Children & Family Contact Services","5942","Equipment - Purchase","08/03/2019"
"Wolverhampton City Council","http://opendatacommunities.org/id/metropolitan-district-council/wolverhampton","AMZN Mktp UK MW0TB10A4","83.32","Children & Family Contact Services","5942","Equipment - Purchase","08/03/2019"
"Wolverhampton City Council","http://opendatacommunities.org/id/metropolitan-district-council/wolverhampton","J VAN VLIET BIRMINGHAM","106.35","Creative Studies Delivery Area","5399","Materials for resale","08/03/2019"
"Wolverhampton City Council","http://opendatacommunities.org/id/metropolitan-district-council/wolverhampton","TFM FARM & COUNTRY SUP","273.00","Northicote Farm","5399","Equipment - Purchase","08/03/2019"
"Wolverhampton City Council","http://opendatacommunities.org/id/metropolitan-district-council/wolverhampton","TFM FARM & COUNTRY SUP","173.50","Northicote Farm","5399","Equipment - Purchase","08/03/2019"
"Wolverhampton City Council","http://opendatacommunities.org/id/metropolitan-district-council/wolverhampton","TFM FARM & COUNTRY SUP","42.82","Northicote Farm","5399","Equipment - Purchase","08/03/2019"
"Wolverhampton City Council","http://opendatacommunities.org/id/metropolitan-district-council/wolverhampton","TFM FARM & COUNTRY SUP","232.93","Northicote Farm","5399","Equipment - Purchase","08/03/2019"
"Wolverhampton City Council","http://opendatacommunities.org/id/metropolitan-district-council/wolverhampton","TFM FARM & COUNTRY SUP","165.98","Northicote Farm","5399","Equipment - Purchase","08/03/2019"
"Wolverhampton City Council","http://opendatacommunities.org/id/metropolitan-district-council/wolverhampton","WWW.ICELAND.CO.UK","102.85","Bradley Resource Centre","5411","Provisions (Not for resale)","07/03/2019"
"Wolverhampton City Council","http://opendatacommunities.org/id/metropolitan-district-council/wolverhampton","NATWEST BANK","200.00","CAT","6011","No Recourse to Public Funds","07/03/2019"
"Wolverhampton City Council","http://opendatacommunities.org/id/metropolitan-district-council/wolverhampton","Trainline","55.96","Safeguarding Admin Resource","4112","Public Transport","07/03/2019"
"Wolverhampton City Council","http://opendatacommunities.org/id/metropolitan-district-council/wolverhampton","Virgin Trains","143.65","Fostering Team & Allowances","4112","Public Transport","07/03/2019"
"Wolverhampton City Council","http://opendatacommunities.org/id/metropolitan-district-council/wolverhampton","POST OFFICE COUNTER","3.45","Fostering Team & Allowances","9402","Comms - Postage","07/03/2019"
"Wolverhampton City Council","http://opendatacommunities.org/id/metropolitan-district-council/wolverhampton","HOME & MOTORSAVE LIMIT","28.09","Aldersley Leisure Village","5039","Materials","07/03/2019"
"Wolverhampton City Council","http://opendatacommunities.org/id/metropolitan-district-council/wolverhampton","WWW.NISBETS.COM","-160.15","Mayoral Expenses","5964","Equipment - Purchase","07/03/2019"
"Wolverhampton City Council","http://opendatacommunities.org/id/metropolitan-district-council/wolverhampton","NAMESCO","34.99","City Direct","4816","Computing - Purchase of Software","07/03/2019"
"Wolverhampton City Council","http://opendatacommunities.org/id/metropolitan-district-council/wolverhampton","Trainline","28.03","LAC Transitions Team","4112","Public Transport","07/03/2019"
"Wolverhampton City Council","http://opendatacommunities.org/id/metropolitan-district-council/wolverhampton","Virgin Trains","-69.35","Service Director City Economy","4112","Public Transport","07/03/2019"
"Wolverhampton City Council","http://opendatacommunities.org/id/metropolitan-district-council/wolverhampton","ASDA GROCERIES ONLINE","-1.76","Upper Pendeford Farm Childrens Home","5411","Provisions (Not for resale)","07/03/2019"
"Wolverhampton City Council","http://opendatacommunities.org/id/metropolitan-district-council/wolverhampton","ASDA GROCERIES ONLINE","202.14","Upper Pendeford Farm Childrens Home","5411","Provisions (Not for resale)","07/03/2019"
"Wolverhampton City Council","http://opendatacommunities.org/id/metropolitan-district-council/wolverhampton","HM PASSPORT OFFICE","58.50","LAC Team","9399","Services - Fees and Charges","07/03/2019"
"Wolverhampton City Council","http://opendatacommunities.org/id/metropolitan-district-council/wolverhampton","THE DOLPHIN","79.17","SEN Sensory Inclusion","7011","Equipment - Purchase","07/03/2019"
"Wolverhampton City Council","http://opendatacommunities.org/id/metropolitan-district-council/wolverhampton","Amazon.co.uk MW7N78044","10.56","Global Budgets","5969","Books","07/03/2019"
"Wolverhampton City Council","http://opendatacommunities.org/id/metropolitan-district-council/wolverhampton","Amazon.co.uk MW5JT60K4","14.38","Global Budgets","5969","Books","07/03/2019"
"Wolverhampton City Council","http://opendatacommunities.org/id/metropolitan-district-council/wolverhampton","CITY OF WOLVERHAMPTON","16.00","LAC Team","9399","Financial Assistance In Exceptional Circ","07/03/2019"
"Wolverhampton City Council","http://opendatacommunities.org/id/metropolitan-district-council/wolverhampton","AMZN Mktp UK MW1111034","68.57","Environmental Crime and Consumer Protect","5942","Equipment - Purchase","07/03/2019"
"Wolverhampton City Council","http://opendatacommunities.org/id/metropolitan-district-council/wolverhampton","CUMMINGS BROTHERS LOCK","52.00","Global Budgets","7399","Equipment - Purchase","07/03/2019"
"Wolverhampton City Council","http://opendatacommunities.org/id/metropolitan-district-council/wolverhampton","NATWEST BANK","200.00","CAT","6011","Section 17","07/03/2019"
"Wolverhampton City Council","http://opendatacommunities.org/id/metropolitan-district-council/wolverhampton","NATWEST BANK","200.00","Court Team","6011","Section 17","07/03/2019"
"Wolverhampton City Council","http://opendatacommunities.org/id/metropolitan-district-council/wolverhampton","LOYD 37 CHURCH STREET","200.00","Duke Street Bungalows","6011","Provisions (Not for resale)","07/03/2019"
"Wolverhampton City Council","http://opendatacommunities.org/id/metropolitan-district-council/wolverhampton","LOYD 37 CHURCH STREET","100.00","Duke Street Bungalows","6011","Provisions (Not for resale)","07/03/2019"
"Wolverhampton City Council","http://opendatacommunities.org/id/metropolitan-district-council/wolverhampton","Trainline","188.75","Legal Services","4112","Public Transport","07/03/2019"
"Wolverhampton City Council","http://opendatacommunities.org/id/metropolitan-district-council/wolverhampton","WWW.ARGOS.CO.UK","78.94","MASH","5310","Equipment - Purchase","07/03/2019"
"Wolverhampton City Council","http://opendatacommunities.org/id/metropolitan-district-council/wolverhampton","Virgin Trains","117.60","Visitor Economy - Development","4112","Public Transport","06/03/2019"
"Wolverhampton City Council","http://opendatacommunities.org/id/metropolitan-district-council/wolverhampton","WM MORRISON FOOD.COM","119.55","Discretionary Fund","5411","Materials","06/03/2019"
"Wolverhampton City Council","http://opendatacommunities.org/id/metropolitan-district-council/wolverhampton","Trainline","188.75","Court Team","4112","Public Transport","06/03/2019"
"Wolverhampton City Council","http://opendatacommunities.org/id/metropolitan-district-council/wolverhampton","NATWEST BANK","200.00","CAT","6011","No Recourse to Public Funds","06/03/2019"
"Wolverhampton City Council","http://opendatacommunities.org/id/metropolitan-district-council/wolverhampton","POST OFFICE COUNTER","8.60","Adoption and Residence Team & Allowances","9402","Comms - Postage","06/03/2019"
"Wolverhampton City Council","http://opendatacommunities.org/id/metropolitan-district-council/wolverhampton","TESCO STORES 5194","41.00","Towers Outdoor Education Centre","5411","Provisions (Not for resale)","06/03/2019"
"Wolverhampton City Council","http://opendatacommunities.org/id/metropolitan-district-council/wolverhampton","WWW.ARGOS.CO.UK","16.90","EIP Locality 4","5310","Grant Payments","06/03/2019"
"Wolverhampton City Council","http://opendatacommunities.org/id/metropolitan-district-council/wolverhampton","WWW.ARGOS.CO.UK","149.99","EIP Locality 4","5310","Grant Payments","06/03/2019"
"Wolverhampton City Council","http://opendatacommunities.org/id/metropolitan-district-council/wolverhampton","ASDA SUPERSTORE","16.07","B-Safe","5411","Subsistence","06/03/2019"
"Wolverhampton City Council","http://opendatacommunities.org/id/metropolitan-district-council/wolverhampton","AMZN Mktp UK MW5YA7AD4","24.99","Aldersley Leisure Village","5942","Equipment - Purchase","06/03/2019"
"Wolverhampton City Council","http://opendatacommunities.org/id/metropolitan-district-council/wolverhampton","AMZN Mktp UK MW4V53AR4","37.48","Aldersley Leisure Village","5942","Equipment - Purchase","06/03/2019"
"Wolverhampton City Council","http://opendatacommunities.org/id/metropolitan-district-council/wolverhampton","SPORTSDIRECT 188","-13.37","Mayoral Expenses","5941","Equipment - Purchase","06/03/2019"
"Wolverhampton City Council","http://opendatacommunities.org/id/metropolitan-district-council/wolverhampton","SPORTSDIRECT 188","13.37","Mayoral Expenses","5941","Equipment - Purchase","06/03/2019"
"Wolverhampton City Council","http://opendatacommunities.org/id/metropolitan-district-council/wolverhampton","SAINSBURYS PFS (1340)","1.67","Mayoral Expenses","5541","Vehicle Maintenance - Repairs","06/03/2019"
"Wolverhampton City Council","http://opendatacommunities.org/id/metropolitan-district-council/wolverhampton","PAYPAL  FA PAC-UK","10.00","LAC Education Team (LACE)","8398","Services - Supplies & Services to users","06/03/2019"
"Wolverhampton City Council","http://opendatacommunities.org/id/metropolitan-district-council/wolverhampton","PAYPAL  IOE PRESS","13.99","LAC Education Team (LACE)","5942","Books","06/03/2019"
"Wolverhampton City Council","http://opendatacommunities.org/id/metropolitan-district-council/wolverhampton","AMZN Mktp UK MW9BI4A04","9.56","Delivery & OCE Development","5942","Comms - Mobile Telephones","06/03/2019"
"Wolverhampton City Council","http://opendatacommunities.org/id/metropolitan-district-council/wolverhampton","AMZN MKTP UK MW0V12AD4","10.79","Intensive Family Support Team","5942","Books","06/03/2019"
"Wolverhampton City Council","http://opendatacommunities.org/id/metropolitan-district-council/wolverhampton","AMZN Mktp UK MW9CI4AT4","16.46","Panel Expenses Fostering & Adoption","5942","Hospitality","06/03/2019"
"Wolverhampton City Council","http://opendatacommunities.org/id/metropolitan-district-council/wolverhampton","Trainline","19.23","Youth Offending Team","4112","Public Transport","06/03/2019"
"Wolverhampton City Council","http://opendatacommunities.org/id/metropolitan-district-council/wolverhampton","COMPANY CARDS LTD","96.00","Technical Support","2741","Publications","06/03/2019"
"Wolverhampton City Council","http://opendatacommunities.org/id/metropolitan-district-council/wolverhampton","CITY OF WOLVERHAMPTON","27.00","LAC Team","9399","Financial Assistance In Exceptional Circ","06/03/2019"
"Wolverhampton City Council","http://opendatacommunities.org/id/metropolitan-district-council/wolverhampton","Trainline","-6.80","Older People Assessment & Care Mgmt","4112","Public Transport","06/03/2019"
"Wolverhampton City Council","http://opendatacommunities.org/id/metropolitan-district-council/wolverhampton","Amazon.co.uk MW3Z80E84","105.62","Environmental Protection","5969","Equipment - Purchase","06/03/2019"
"Wolverhampton City Council","http://opendatacommunities.org/id/metropolitan-district-council/wolverhampton","ASDA SUPERSTORE","25.95","Civic Centre Catering","5411","Provisions (Not for resale)","06/03/2019"
"Wolverhampton City Council","http://opendatacommunities.org/id/metropolitan-district-council/wolverhampton","SAINSBURYS (2340)","28.10","Civic Centre Catering","5411","Provisions (Not for resale)","06/03/2019"
"Wolverhampton City Council","http://opendatacommunities.org/id/metropolitan-district-council/wolverhampton","J VAN VLIET BIRMINGHAM","182.87","Creative Studies Delivery Area","5399","Materials for resale","06/03/2019"
"Wolverhampton City Council","http://opendatacommunities.org/id/metropolitan-district-council/wolverhampton","J VAN VLIET BIRMINGHAM","242.89","Creative Studies Delivery Area","5399","Materials for resale","06/03/2019"
"Wolverhampton City Council","http://opendatacommunities.org/id/metropolitan-district-council/wolverhampton","ASDA GROCERIES ONLINE","148.93","Bradley Resource Centre","5411","Provisions (Not for resale)","05/03/2019"
"Wolverhampton City Council","http://opendatacommunities.org/id/metropolitan-district-council/wolverhampton","THE RED HOUSE","35.98","IMPACT","5691","Equipment - Purchase","05/03/2019"
"Wolverhampton City Council","http://opendatacommunities.org/id/metropolitan-district-council/wolverhampton","THE RED HOUSE","44.97","IMPACT","5691","Equipment - Purchase","05/03/2019"
"Wolverhampton City Council","http://opendatacommunities.org/id/metropolitan-district-council/wolverhampton","SMETHWICK GB T/O","9.00","Visitor Economy - Development","4112","Public Transport","05/03/2019"
"Wolverhampton City Council","http://opendatacommunities.org/id/metropolitan-district-council/wolverhampton","NATWEST BANK","200.00","CAT","6011","No Recourse to Public Funds","05/03/2019"
"Wolverhampton City Council","http://opendatacommunities.org/id/metropolitan-district-council/wolverhampton","POST OFFICE COUNTER","18.30","Adoption and Residence Team & Allowances","9402","Comms - Postage","05/03/2019"
"Wolverhampton City Council","http://opendatacommunities.org/id/metropolitan-district-council/wolverhampton","MONARCH CLEANERS LTD","201.84","Towers Outdoor Education Centre","7216","Laundry Expenses","05/03/2019"
"Wolverhampton City Council","http://opendatacommunities.org/id/metropolitan-district-council/wolverhampton","CHEMSOL CYMRU LTD","182.82","Towers Outdoor Education Centre","5199","Fixtures and Fittings - Purchases","05/03/2019"
"Wolverhampton City Council","http://opendatacommunities.org/id/metropolitan-district-council/wolverhampton","OEAP","384.00","Towers Outdoor Education Centre","5734","Equipment - Purchase","05/03/2019"
"Wolverhampton City Council","http://opendatacommunities.org/id/metropolitan-district-council/wolverhampton","C L JONES HEAD OFFICE","262.02","Towers Outdoor Education Centre","5211","Fixtures and Fittings - Purchases","05/03/2019"
"Wolverhampton City Council","http://opendatacommunities.org/id/metropolitan-district-council/wolverhampton","Trainline","205.13","Headstart Phase 3","4112","Public Transport","05/03/2019"
"Wolverhampton City Council","http://opendatacommunities.org/id/metropolitan-district-council/wolverhampton","MARSTONS PLC","722.16","Mayoral Expenses","5921","Hospitality","05/03/2019"
"Wolverhampton City Council","http://opendatacommunities.org/id/metropolitan-district-council/wolverhampton","HARLECH FOODSERVICE LT","103.22","Towers Outdoor Education Centre","5422","Provisions (Not for resale)","05/03/2019"
"Wolverhampton City Council","http://opendatacommunities.org/id/metropolitan-district-council/wolverhampton","ASDA SUPERSTORE","87.33","Mayoral Expenses","5411","Provisions (Not for resale)","05/03/2019"
"Wolverhampton City Council","http://opendatacommunities.org/id/metropolitan-district-council/wolverhampton","ASDA SUPERSTORE","38.33","LAC Transitions Team","5411","Client Allowances","05/03/2019"
"Wolverhampton City Council","http://opendatacommunities.org/id/metropolitan-district-council/wolverhampton","ASDA SUPERSTORE","38.33","LAC Transitions Team","5411","Client Allowances","05/03/2019"
"Wolverhampton City Council","http://opendatacommunities.org/id/metropolitan-district-council/wolverhampton","TIMPSON LTD","22.00","Central Costs","7251","Equipment - R & M","05/03/2019"
"Wolverhampton City Council","http://opendatacommunities.org/id/metropolitan-district-council/wolverhampton","1&1 INTERNET LIMITED","13.10","Learning Technologies","4816","Computing - Purchase of Software","05/03/2019"
"Wolverhampton City Council","http://opendatacommunities.org/id/metropolitan-district-council/wolverhampton","FACEBK GCJ4FK2BM2","17.00","Education And Access","7311","Marketing \ Non-staff advertising","05/03/2019"
"Wolverhampton City Council","http://opendatacommunities.org/id/metropolitan-district-council/wolverhampton","ASDA GROCERIES ONLINE","-.40","Ernest Bold Court","5411","Provisions (Not for resale)","05/03/2019"
"Wolverhampton City Council","http://opendatacommunities.org/id/metropolitan-district-council/wolverhampton","ASDA GROCERIES ONLINE","57.98","Ernest Bold Court","5411","Provisions (Not for resale)","05/03/2019"
"Wolverhampton City Council","http://opendatacommunities.org/id/metropolitan-district-council/wolverhampton","eSky.pl S.A.","299.05","Members Expenses","4722","Public Transport","05/03/2019"
"Wolverhampton City Council","http://opendatacommunities.org/id/metropolitan-district-council/wolverhampton","Trainline","4.02","Older People Assessment & Care Mgmt","4112","Public Transport","05/03/2019"
"Wolverhampton City Council","http://opendatacommunities.org/id/metropolitan-district-council/wolverhampton","RICS COM GBP CYBS","199.00","Central Training","8699","Training Expenses","05/03/2019"
"Wolverhampton City Council","http://opendatacommunities.org/id/metropolitan-district-council/wolverhampton","Trainline","19.43","Delivery & OCE Development","4112","Public Transport","05/03/2019"
"Wolverhampton City Council","http://opendatacommunities.org/id/metropolitan-district-council/wolverhampton","Amazon.co.uk MW69T13Q4","18.75","Corporate Parenting","5969","Equipment - Purchase","04/03/2019"
"Wolverhampton City Council","http://opendatacommunities.org/id/metropolitan-district-council/wolverhampton","NCP BIRMINGHAM AIRPORT","49.17","Service Director City Economy","7523","Car Allowances","04/03/2019"
"Wolverhampton City Council","http://opendatacommunities.org/id/metropolitan-district-council/wolverhampton","UTILITA ENERGY LIMITED","225.37","LAC Team","4900","Financial Assistance In Exceptional Circ","04/03/2019"
"Wolverhampton City Council","http://opendatacommunities.org/id/metropolitan-district-council/wolverhampton","Virgin Trains","43.40","LAC Team","4112","Public Transport","04/03/2019"
"Wolverhampton City Council","http://opendatacommunities.org/id/metropolitan-district-council/wolverhampton","ASDA GROCERIES ONLINE","42.14","Creative Studies Delivery Area","5411","Provisions (Not for resale)","04/03/2019"
"Wolverhampton City Council","http://opendatacommunities.org/id/metropolitan-district-council/wolverhampton","Amazon.co.uk MW5GJ0384","14.88","Archives","5969","Books","04/03/2019"
"Wolverhampton City Council","http://opendatacommunities.org/id/metropolitan-district-council/wolverhampton","WWW.HIGHFIELDQUALIFICA","130.00","School Meals Statutory Standards","8249","Training Expenses","04/03/2019"
"Wolverhampton City Council","http://opendatacommunities.org/id/metropolitan-district-council/wolverhampton","Virgin Trains","18.00","School Meals Statutory Standards","4112","Public Transport","04/03/2019"
"Wolverhampton City Council","http://opendatacommunities.org/id/metropolitan-district-council/wolverhampton","POST OFFICE COUNTER","201.00","Civic Centre Catering","9402","Comms - Postage","04/03/2019"
"Wolverhampton City Council","http://opendatacommunities.org/id/metropolitan-district-council/wolverhampton","BAKER ROSS","203.21","Education And Access","5970","Materials","04/03/2019"
"Wolverhampton City Council","http://opendatacommunities.org/id/metropolitan-district-council/wolverhampton","HM PASSPORT OFFICE","58.50","LAC Team","9399","Financial Assistance In Exceptional Circ","04/03/2019"
"Wolverhampton City Council","http://opendatacommunities.org/id/metropolitan-district-council/wolverhampton","WP-CENTRAL TAXIS L","-132.72","LAC Team","4121","Client Transport","04/03/2019"
"Wolverhampton City Council","http://opendatacommunities.org/id/metropolitan-district-council/wolverhampton","Wolverhampton Fair Tra","32.40","Civic Centre Catering","5411","Provisions (Not for resale)","04/03/2019"
"Wolverhampton City Council","http://opendatacommunities.org/id/metropolitan-district-council/wolverhampton","POST OFFICE COUNTER","242.70","Music Support Team","9402","Stationery","04/03/2019"
"Wolverhampton City Council","http://opendatacommunities.org/id/metropolitan-district-council/wolverhampton","ASDA GROCERIES ONLINE","51.42","Ernest Bold Court","5411","Provisions (Not for resale)","04/03/2019"
"Wolverhampton City Council","http://opendatacommunities.org/id/metropolitan-district-council/wolverhampton","ROOKERY  Sainsburys B","200.00","Duke Street Bungalows","6011","Provisions (Not for resale)","04/03/2019"
"Wolverhampton City Council","http://opendatacommunities.org/id/metropolitan-district-council/wolverhampton","NCP BIRMINGHAM AIRPORT","57.38","Delivery & OCE Development","7523","Car Allowances","04/03/2019"
"Wolverhampton City Council","http://opendatacommunities.org/id/metropolitan-district-council/wolverhampton","GEN REGISTER OFFICE","30.00","LAC Transitions Team","9399","Client Allowances","04/03/2019"
"Wolverhampton City Council","http://opendatacommunities.org/id/metropolitan-district-council/wolverhampton","HOTEL MERCURE","70.83","Scrutiny & Transparency","3579","Accommodation Costs","04/03/2019"
"Wolverhampton City Council","http://opendatacommunities.org/id/metropolitan-district-council/wolverhampton","WWW.CORAM.ORG.UK","80.47","Head of Service - CINCP","8398","Services - Supplies & Services to users","04/03/2019"
"Wolverhampton City Council","http://opendatacommunities.org/id/metropolitan-district-council/wolverhampton","Virgin Trains","103.20","Scrutiny & Transparency","4112","Public Transport","04/03/2019"
"Wolverhampton City Council","http://opendatacommunities.org/id/metropolitan-district-council/wolverhampton","Virgin Trains","35.30","Scrutiny & Transparency","4112","Public Transport","04/03/2019"
"Wolverhampton City Council","http://opendatacommunities.org/id/metropolitan-district-council/wolverhampton","Virgin Trains","71.10","Scrutiny & Transparency","4112","Public Transport","04/03/2019"
"Wolverhampton City Council","http://opendatacommunities.org/id/metropolitan-district-council/wolverhampton","SCREWFIX DIRECT LT","10.25","Car Parks Operational Staff","5211","Equipment - Purchase","04/03/2019"
"Wolverhampton City Council","http://opendatacommunities.org/id/metropolitan-district-council/wolverhampton","AMZN Mktp UK MW62G2Z14","36.72","Members Expenses","5942","Equipment - Purchase","04/03/2019"
"Wolverhampton City Council","http://opendatacommunities.org/id/metropolitan-district-council/wolverhampton","POST OFFICE COUNTER","5.32","Art Gallery","9402","Comms - Postage","04/03/2019"
"Wolverhampton City Council","http://opendatacommunities.org/id/metropolitan-district-council/wolverhampton","SAINSBURYS (2340)","25.30","Key to Inspiration","5411","Provisions (Not for resale)","04/03/2019"
"Wolverhampton City Council","http://opendatacommunities.org/id/metropolitan-district-council/wolverhampton","ASDA GROCERIES ONLINE","111.75","-","5411","Provisions (Not for resale)","04/03/2019"
"Wolverhampton City Council","http://opendatacommunities.org/id/metropolitan-district-council/wolverhampton","ASDA STORE","73.99","Bradley Resource Centre","5411","Provisions (Not for resale)","04/03/2019"
"Wolverhampton City Council","http://opendatacommunities.org/id/metropolitan-district-council/wolverhampton","WWW.WMCA.CO.UK","56.50","IMPACT","9399","Services - Fees and Charges","04/03/2019"
"Wolverhampton City Council","http://opendatacommunities.org/id/metropolitan-district-council/wolverhampton","CITY OF WOLVERHAMPTON","17.00","IMPACT","9399","Services - Fees and Charges","04/03/2019"
"Wolverhampton City Council","http://opendatacommunities.org/id/metropolitan-district-council/wolverhampton","NEW ELECTRICAL DIST LT","43.20","Street Lighting Maintenance","5065","Materials","04/03/2019"
"Wolverhampton City Council","http://opendatacommunities.org/id/metropolitan-district-council/wolverhampton","THE RANGE","16.52","Bradley Resource Centre","5311","Equipment - Purchase","04/03/2019"
"Wolverhampton City Council","http://opendatacommunities.org/id/metropolitan-district-council/wolverhampton","POST OFFICE COUNTER","15.90","Adoption and Residence Team & Allowances","9402","Comms - Postage","04/03/2019"
"Wolverhampton City Council","http://opendatacommunities.org/id/metropolitan-district-council/wolverhampton","TESCO STORES 5194","-.46","Towers Outdoor Education Centre","5411","Provisions (Not for resale)","04/03/2019"
"Wolverhampton City Council","http://opendatacommunities.org/id/metropolitan-district-council/wolverhampton","WP-CENTRAL TAXIS L","-110.60","Fostering Team & Allowances","4121","Client Transport","04/03/2019"
"Wolverhampton City Council","http://opendatacommunities.org/id/metropolitan-district-council/wolverhampton","000002200500000","30.00","Ernest Bold Court","6011","Equipment - R & M","04/03/2019"
"Wolverhampton City Council","http://opendatacommunities.org/id/metropolitan-district-council/wolverhampton","AMZN Mktp UK MW2YI8L54","389.08","Community Recreation","5942","Furniture","01/03/2019"
"Wolverhampton City Council","http://opendatacommunities.org/id/metropolitan-district-council/wolverhampton","WICKES WOLVERHAMPTON","7.52","Community Enablement","5211","Materials","01/03/2019"
"Wolverhampton City Council","http://opendatacommunities.org/id/metropolitan-district-council/wolverhampton","B & Q 1243","8.22","Specialist Support Service - North","5211","Equipment - R & M","01/03/2019"
"Wolverhampton City Council","http://opendatacommunities.org/id/metropolitan-district-council/wolverhampton","CORAM","411.00","LAC Team","5192","Financial Assistance In Exceptional Circ","01/03/2019"
"Wolverhampton City Council","http://opendatacommunities.org/id/metropolitan-district-council/wolverhampton","NATIONAL RAILCARD","30.00","LAC Team","4112","Financial Assistance In Exceptional Circ","01/03/2019"
"Wolverhampton City Council","http://opendatacommunities.org/id/metropolitan-district-council/wolverhampton","Trainline","15.31","Service Director Adults","4112","Public Transport","01/03/2019"
"Wolverhampton City Council","http://opendatacommunities.org/id/metropolitan-district-council/wolverhampton","WWW.REDSPOTTEDHANKY.CO","71.80","CIN/CP Social Work Unit - Area 5","4112","Section 17","01/03/2019"
"Wolverhampton City Council","http://opendatacommunities.org/id/metropolitan-district-council/wolverhampton","SCREWFIX DIRECT","79.98","Car Parks Operational Staff","5211","Materials","01/03/2019"
"Wolverhampton City Council","http://opendatacommunities.org/id/metropolitan-district-council/wolverhampton","Amazon.co.uk MW2SF3LZ4","20.82","Parking Enforcement","5969","Equipment - Purchase","01/03/2019"
"Wolverhampton City Council","http://opendatacommunities.org/id/metropolitan-district-council/wolverhampton","Amazon.co.uk MW37R3L64","58.97","Parking Enforcement","5969","Equipment - Purchase","01/03/2019"
"Wolverhampton City Council","http://opendatacommunities.org/id/metropolitan-district-council/wolverhampton","Amazon.co.uk MW0E704Z4","111.43","Parking Enforcement","5969","Equipment - Purchase","01/03/2019"
"Wolverhampton City Council","http://opendatacommunities.org/id/metropolitan-district-council/wolverhampton","B & Q 1243","31.67","Ernest Bold Court","5211","Equipment - R & M","01/03/2019"
"Wolverhampton City Council","http://opendatacommunities.org/id/metropolitan-district-council/wolverhampton","J VAN VLIET BIRMINGHAM","65.50","Creative Studies Delivery Area","5399","Materials for resale","01/03/2019"
"Wolverhampton City Council","http://opendatacommunities.org/id/metropolitan-district-council/wolverhampton","SP   AUTODATA LIMITED","103.50","Fleet Management","5734","Equipment - Purchase","01/03/2019"
"Wolverhampton City Council","http://opendatacommunities.org/id/metropolitan-district-council/wolverhampton","AMZN Mktp UK MW4GQ4LO4","35.64","Parks - Ranger Service","5942","Equipment - Purchase","01/03/2019"
"Wolverhampton City Council","http://opendatacommunities.org/id/metropolitan-district-council/wolverhampton","SAINSBURYS SACAT (2340","6.00","Key to Inspiration","5411","Catering","01/03/2019"
"Wolverhampton City Council","http://opendatacommunities.org/id/metropolitan-district-council/wolverhampton","Trainline","8.90","Adult Services - East","4112","Public Transport","01/03/2019"
"Wolverhampton City Council","http://opendatacommunities.org/id/metropolitan-district-council/wolverhampton","Trainline",".00","Citizenship, Language & Learning","4112","Public Transport","01/03/2019"
"Wolverhampton City Council","http://opendatacommunities.org/id/metropolitan-district-council/wolverhampton","FACEBK 7EVZFJEG52","4.59","Visitor Economy - Development","7311","Marketing \ Non-staff advertising","01/03/2019"
"Wolverhampton City Council","http://opendatacommunities.org/id/metropolitan-district-council/wolverhampton","Trainline","27.73","Revenues","4112","Public Transport","01/03/2019"
"Wolverhampton City Council","http://opendatacommunities.org/id/metropolitan-district-council/wolverhampton","WWW.NISBETS.COM","396.83","Mayoral Expenses","5964","Hospitality","01/03/2019"
"Wolverhampton City Council","http://opendatacommunities.org/id/metropolitan-district-council/wolverhampton","POST OFFICE COUNTER","8.60","Adoption and Residence Team & Allowances","9402","Comms - Postage","01/03/2019"
"Wolverhampton City Council","http://opendatacommunities.org/id/metropolitan-district-council/wolverhampton","TESCO STORES 5194","205.31","Towers Outdoor Education Centre","5411","Provisions (Not for resale)","01/03/2019"
"Wolverhampton City Council","http://opendatacommunities.org/id/metropolitan-district-council/wolverhampton","FACEBK  9K2NLH6B82","170.00","WV Active Marketing","7311","Marketing \ Non-staff advertising","01/03/2019"
"Wolverhampton City Council","http://opendatacommunities.org/id/metropolitan-district-council/wolverhampton","FACEBK  3S9EVKWAR2","123.19","Communications & Marketing - General","7311","Marketing \ Non-staff advertising","01/03/2019"
"Wolverhampton City Council","http://opendatacommunities.org/id/metropolitan-district-council/wolverhampton","Trainline","11.96","Business Support Services","4112","Public Transport","01/03/2019"
"Wolverhampton City Council","http://opendatacommunities.org/id/metropolitan-district-council/wolverhampton","Amazon Prime MW8399LY4","65.83","LAC Education Team (LACE)","5968","Subscriptions","01/03/2019"
"Wolverhampton City Council","http://opendatacommunities.org/id/metropolitan-district-council/wolverhampton","Trainline","38.16","LAC Education Team (LACE)","4112","Public Transport","01/03/2019"
"Wolverhampton City Council","http://opendatacommunities.org/id/metropolitan-district-council/wolverhampton","Trainline","15.82","LAC Education Team (LACE)","4112","Public Transport","01/03/2019"
"Wolverhampton City Council","http://opendatacommunities.org/id/metropolitan-district-council/wolverhampton","WOLVERHAMPTON CC","12.50","Cemeteries","7523","Car Allowances","01/03/2019"
"Wolverhampton City Council","http://opendatacommunities.org/id/metropolitan-district-council/wolverhampton","WWW.PROVISIO.COM","87.50","Ernest Bold Court","5734","Computing - Purchase of Software","01/03/2019"
"Wolverhampton City Council","http://opendatacommunities.org/id/metropolitan-district-council/wolverhampton","PAYPAL  ITUNES.COM/BIL","99.99","Strategic ICTS (ICT Serv Budget)","5815","Computing - Purchase of Software","01/03/2019"
"Wolverhampton City Council","http://opendatacommunities.org/id/metropolitan-district-council/wolverhampton","ASDA GROCERIES ONLINE","-9.06","Upper Pendeford Farm Childrens Home","5411","Provisions (Not for resale)","01/03/2019"
"Wolverhampton City Council","http://opendatacommunities.org/id/metropolitan-district-council/wolverhampton","ASDA GROCERIES ONLINE","190.52","Upper Pendeford Farm Childrens Home","5411","Provisions (Not for resale)","01/03/2019"
"Wolverhampton City Council","http://opendatacommunities.org/id/metropolitan-district-council/wolverhampton","eviivo:Inn on the Broa","60.00","LAC Team","7011","Services - Supplies & Services to users","01/03/2019"
"Wolverhampton City Council","http://opendatacommunities.org/id/metropolitan-district-council/wolverhampton","Virgin Trains","75.70","LAC Team","4112","Public Transport","01/03/2019"
"Wolverhampton City Council","http://opendatacommunities.org/id/metropolitan-district-council/wolverhampton","COSTA COFFEE 43043885","25.00","Business Support Services","5814","Catering","01/03/2019"
"Wolverhampton City Council","http://opendatacommunities.org/id/metropolitan-district-council/wolverhampton","P.F. CUSACK TOOL SUPPL","75.17","Transportation General","5211","Materials","01/03/2019"
"Wolverhampton City Council","http://opendatacommunities.org/id/metropolitan-district-council/wolverhampton","Cross Country Trains","8.00","Head of Strategic Commissioning � People","4112","Public Transport","01/03/2019"
"Wolverhampton City Council","http://opendatacommunities.org/id/metropolitan-district-council/wolverhampton","Amazon.co.uk MW47N7LE4","19.56","Global Budgets","5969","Equipment - Purchase","01/03/2019"
"Wolverhampton City Council","http://opendatacommunities.org/id/metropolitan-district-council/wolverhampton","AMZN MKTP UK MW3WT1LW4","15.21","Global Budgets","5942","Books","01/03/2019"
"Wolverhampton City Council","http://opendatacommunities.org/id/metropolitan-district-council/wolverhampton","AMZN MKTP UK MW3VD54M4","3.30","Global Budgets","5942","Books","01/03/2019"
